{"text_format":"3","workbook":"xlsx","n_sheets":4,"sheets":["本年累计预算汇总","每月支出汇总","费用明细","慈善和赞助"],"not_rendered":{"images":1,"defined_names":15},"read":"whole","date_system":"1900"}

{"sheet":"本年累计预算汇总","index":0,"n_rows":16,"n_cols":7,"rows_kept":16,"merged":[[1,1,1,4]]}
[]
[null,"实际金额与预算（年度最新数据）",{"$nulls":3},"年份",{"$f":"YEAR(TODAY())","v":2019}]
[null,"总帐代码","会计科目","实际金额","预算","剩余金额（￥）","剩余百分比"]
[null,1000,"广告费",{"$f":"SUMIF(每月支出汇总[总帐代码],YearToDateTable[[#This Row],[总帐代码]],每月支出汇总[总计])","v":{"v":0,"d":"¥0.00"}},{"v":100000,"d":"¥100,000.00"},{"$f":"IF(YearToDateTable[[#This Row],[预算]]=\"\",\"\",YearToDateTable[[#This Row],[预算]]-YearToDateTable[[#This Row],[实际金额]])","v":{"v":100000,"d":"¥100,000.00"}},{"$f":"IFERROR(YearToDateTable[[#This Row],[剩余金额（￥）]]/YearToDateTable[[#This Row],[预算]],\"\")","v":{"v":1,"d":"100.00%"}}]
[null,2000,"办公设备",{"$f":"SUMIF(每月支出汇总[总帐代码],YearToDateTable[[#This Row],[总帐代码]],每月支出汇总[总计])","v":{"v":0,"d":"¥0.00"}},{"v":100000,"d":"¥100,000.00"},{"$f":"IF(YearToDateTable[[#This Row],[预算]]=\"\",\"\",YearToDateTable[[#This Row],[预算]]-YearToDateTable[[#This Row],[实际金额]])","v":{"v":100000,"d":"¥100,000.00"}},{"$f":"IFERROR(YearToDateTable[[#This Row],[剩余金额（￥）]]/YearToDateTable[[#This Row],[预算]],\"\")","v":{"v":1,"d":"100.00%"}}]
[null,3000,"打印机",{"$f":"SUMIF(每月支出汇总[总帐代码],YearToDateTable[[#This Row],[总帐代码]],每月支出汇总[总计])","v":{"v":0,"d":"¥0.00"}},{"v":100000,"d":"¥100,000.00"},{"$f":"IF(YearToDateTable[[#This Row],[预算]]=\"\",\"\",YearToDateTable[[#This Row],[预算]]-YearToDateTable[[#This Row],[实际金额]])","v":{"v":100000,"d":"¥100,000.00"}},{"$f":"IFERROR(YearToDateTable[[#This Row],[剩余金额（￥）]]/YearToDateTable[[#This Row],[预算]],\"\")","v":{"v":1,"d":"100.00%"}}]
[null,4000,"服务器成本",{"$f":"SUMIF(每月支出汇总[总帐代码],YearToDateTable[[#This Row],[总帐代码]],每月支出汇总[总计])","v":{"v":0,"d":"¥0.00"}},{"v":100000,"d":"¥100,000.00"},{"$f":"IF(YearToDateTable[[#This Row],[预算]]=\"\",\"\",YearToDateTable[[#This Row],[预算]]-YearToDateTable[[#This Row],[实际金额]])","v":{"v":100000,"d":"¥100,000.00"}},{"$f":"IFERROR(YearToDateTable[[#This Row],[剩余金额（￥）]]/YearToDateTable[[#This Row],[预算]],\"\")","v":{"v":1,"d":"100.00%"}}]
[null,5000,"日用品",{"$f":"SUMIF(每月支出汇总[总帐代码],YearToDateTable[[#This Row],[总帐代码]],每月支出汇总[总计])","v":{"v":0,"d":"¥0.00"}},{"v":50000,"d":"¥50,000.00"},{"$f":"IF(YearToDateTable[[#This Row],[预算]]=\"\",\"\",YearToDateTable[[#This Row],[预算]]-YearToDateTable[[#This Row],[实际金额]])","v":{"v":50000,"d":"¥50,000.00"}},{"$f":"IFERROR(YearToDateTable[[#This Row],[剩余金额（￥）]]/YearToDateTable[[#This Row],[预算]],\"\")","v":{"v":1,"d":"100.00%"}}]
[null,6000,"客户端支出",{"$f":"SUMIF(每月支出汇总[总帐代码],YearToDateTable[[#This Row],[总帐代码]],每月支出汇总[总计])","v":{"v":0,"d":"¥0.00"}},{"v":25000,"d":"¥25,000.00"},{"$f":"IF(YearToDateTable[[#This Row],[预算]]=\"\",\"\",YearToDateTable[[#This Row],[预算]]-YearToDateTable[[#This Row],[实际金额]])","v":{"v":25000,"d":"¥25,000.00"}},{"$f":"IFERROR(YearToDateTable[[#This Row],[剩余金额（￥）]]/YearToDateTable[[#This Row],[预算]],\"\")","v":{"v":1,"d":"100.00%"}}]
[null,7000,"计算机",{"$f":"SUMIF(每月支出汇总[总帐代码],YearToDateTable[[#This Row],[总帐代码]],每月支出汇总[总计])","v":{"v":0,"d":"¥0.00"}},{"v":75000,"d":"¥75,000.00"},{"$f":"IF(YearToDateTable[[#This Row],[预算]]=\"\",\"\",YearToDateTable[[#This Row],[预算]]-YearToDateTable[[#This Row],[实际金额]])","v":{"v":75000,"d":"¥75,000.00"}},{"$f":"IFERROR(YearToDateTable[[#This Row],[剩余金额（￥）]]/YearToDateTable[[#This Row],[预算]],\"\")","v":{"v":1,"d":"100.00%"}}]
[null,8000,"医疗计划",{"$f":"SUMIF(每月支出汇总[总帐代码],YearToDateTable[[#This Row],[总帐代码]],每月支出汇总[总计])","v":{"v":0,"d":"¥0.00"}},{"v":65000,"d":"¥65,000.00"},{"$f":"IF(YearToDateTable[[#This Row],[预算]]=\"\",\"\",YearToDateTable[[#This Row],[预算]]-YearToDateTable[[#This Row],[实际金额]])","v":{"v":65000,"d":"¥65,000.00"}},{"$f":"IFERROR(YearToDateTable[[#This Row],[剩余金额（￥）]]/YearToDateTable[[#This Row],[预算]],\"\")","v":{"v":1,"d":"100.00%"}}]
[null,9000,"建筑成本",{"$f":"SUMIF(每月支出汇总[总帐代码],YearToDateTable[[#This Row],[总帐代码]],每月支出汇总[总计])","v":{"v":0,"d":"¥0.00"}},{"v":125000,"d":"¥125,000.00"},{"$f":"IF(YearToDateTable[[#This Row],[预算]]=\"\",\"\",YearToDateTable[[#This Row],[预算]]-YearToDateTable[[#This Row],[实际金额]])","v":{"v":125000,"d":"¥125,000.00"}},{"$f":"IFERROR(YearToDateTable[[#This Row],[剩余金额（￥）]]/YearToDateTable[[#This Row],[预算]],\"\")","v":{"v":1,"d":"100.00%"}}]
[null,10000,"市场营销",{"$f":"SUMIF(每月支出汇总[总帐代码],YearToDateTable[[#This Row],[总帐代码]],每月支出汇总[总计])","v":{"v":0,"d":"¥0.00"}},{"v":100000,"d":"¥100,000.00"},{"$f":"IF(YearToDateTable[[#This Row],[预算]]=\"\",\"\",YearToDateTable[[#This Row],[预算]]-YearToDateTable[[#This Row],[实际金额]])","v":{"v":100000,"d":"¥100,000.00"}},{"$f":"IFERROR(YearToDateTable[[#This Row],[剩余金额（￥）]]/YearToDateTable[[#This Row],[预算]],\"\")","v":{"v":1,"d":"100.00%"}}]
[null,11000,"慈善",{"$f":"SUMIF(每月支出汇总[总帐代码],YearToDateTable[[#This Row],[总帐代码]],每月支出汇总[总计])","v":{"v":0,"d":"¥0.00"}},{"v":250000,"d":"¥250,000.00"},{"$f":"IF(YearToDateTable[[#This Row],[预算]]=\"\",\"\",YearToDateTable[[#This Row],[预算]]-YearToDateTable[[#This Row],[实际金额]])","v":{"v":250000,"d":"¥250,000.00"}},{"$f":"IFERROR(YearToDateTable[[#This Row],[剩余金额（￥）]]/YearToDateTable[[#This Row],[预算]],\"\")","v":{"v":1,"d":"100.00%"}}]
[null,12000,"赞助",{"$f":"SUMIF(每月支出汇总[总帐代码],YearToDateTable[[#This Row],[总帐代码]],每月支出汇总[总计])","v":{"v":0,"d":"¥0.00"}},{"v":50000,"d":"¥50,000.00"},{"$f":"IF(YearToDateTable[[#This Row],[预算]]=\"\",\"\",YearToDateTable[[#This Row],[预算]]-YearToDateTable[[#This Row],[实际金额]])","v":{"v":50000,"d":"¥50,000.00"}},{"$f":"IFERROR(YearToDateTable[[#This Row],[剩余金额（￥）]]/YearToDateTable[[#This Row],[预算]],\"\")","v":{"v":1,"d":"100.00%"}}]
[null,"汇总",null,{"$f":"SUBTOTAL(109,YearToDateTable[实际金额])","v":{"v":0,"d":"¥0.00"}},{"$f":"SUBTOTAL(109,YearToDateTable[预算])","v":{"v":1140000,"d":"¥1,140,000.00"}},{"$f":"SUBTOTAL(109,YearToDateTable[剩余金额（￥）])","v":{"v":1140000,"d":"¥1,140,000.00"}},{"$f":"YearToDateTable[[#Totals],[剩余金额（￥）]]/YearToDateTable[[#Totals],[预算]]","v":{"v":1,"d":"100.00%"}}]

{"sheet":"每月支出汇总","index":1,"n_rows":18,"n_cols":17,"rows_kept":18,"merged":[[1,1,1,16]]}
[]
[null,"每月支出汇总"]
[null,"按“会计科目”筛选数据的切片器位于此单元格中。",null,{"$f":"DATEVALUE(_年份&\"年1月1日\")","v":{"$error":"#VALUE!"}},{"$f":"DATEVALUE(_年份&\"年2月1日\")","v":{"$error":"#VALUE!"}},{"$f":"DATEVALUE(_年份&\"年3月1日\")","v":{"$error":"#VALUE!"}},{"$f":"DATEVALUE(_年份&\"年4月1日\")","v":{"$error":"#VALUE!"}},{"$f":"DATEVALUE(_年份&\"年5月1日\")","v":{"$error":"#VALUE!"}},{"$f":"DATEVALUE(_年份&\"年6月1日\")","v":{"$error":"#VALUE!"}},{"$f":"DATEVALUE(_年份&\"年7月1日\")","v":{"$error":"#VALUE!"}},{"$f":"DATEVALUE(_年份&\"年8月1日\")","v":{"$error":"#VALUE!"}},{"$f":"DATEVALUE(_年份&\"年9月1日\")","v":{"$error":"#VALUE!"}},{"$f":"DATEVALUE(_年份&\"年10月1日\")","v":{"$error":"#VALUE!"}},{"$f":"DATEVALUE(_年份&\"年11月1日\")","v":{"$error":"#VALUE!"}},{"$f":"DATEVALUE(_年份&\"年12月1日\")","v":{"$error":"#VALUE!"}}]
[{"$nulls":3},{"$f":"EOMONTH(D3,0)","v":{"$error":"#VALUE!"}},{"$f":"EOMONTH(E3,0)","v":{"$error":"#VALUE!"}},{"$f":"EOMONTH(F3,0)","v":{"$error":"#VALUE!"}},{"$f":"EOMONTH(G3,0)","v":{"$error":"#VALUE!"}},{"$f":"EOMONTH(H3,0)","v":{"$error":"#VALUE!"}},{"$f":"EOMONTH(I3,0)","v":{"$error":"#VALUE!"}},{"$error":"#VALUE!"},{"$error":"#VALUE!"},{"$error":"#VALUE!"},{"$error":"#VALUE!"},{"$error":"#VALUE!"},{"$error":"#VALUE!"}]
[null,"总帐代码","会计科目","1月","2月","3月","4月","5月","6月","7月","8月","9月","10月","11月","12月","总计"," "]
[null,1000,"广告费",{"$f":"SUMIFS(费用明细[支票金额],费用明细[总帐代码],每月支出汇总[[#This Row],[总帐代码]],费用明细[发票日期],\">=\"&D$3,费用明细[发票日期],\"<=\"&D$4)+SUMIFS(其他[支票金额],其他[总帐代码],每月支出汇总[[#This Row],[总帐代码]],其他[发起支票请求的日期],\">=\"&DATEVALUE(_年份&\"年\"&每月支出汇总[[#Headers],[1月]]&\"1日\"),其他[发起支票请求的日期],\"<=\"&D$4)","v":{"v":0,"d":"¥0.00"}},{"$f":"SUMIFS(费用明细[支票金额],费用明细[总帐代码],每月支出汇总[[#This Row],[总帐代码]],费用明细[发票日期],\">=\"&E$3,费用明细[发票日期],\"<=\"&E$4)+SUMIFS(其他[支票金额],其他[总帐代码],每月支出汇总[[#This Row],[总帐代码]],其他[发起支票请求的日期],\">=\"&DATEVALUE(_年份&\"年\"&每月支出汇总[[#Headers],[2月]]&\"1日\"),其他[发起支票请求的日期],\"<=\"&E$4)","v":{"v":0,"d":"¥0.00"}},{"$f":"SUMIFS(费用明细[支票金额],费用明细[总帐代码],每月支出汇总[[#This Row],[总帐代码]],费用明细[发票日期],\">=\"&F$3,费用明细[发票日期],\"<=\"&F$4)+SUMIFS(其他[支票金额],其他[总帐代码],每月支出汇总[[#This Row],[总帐代码]],其他[发起支票请求的日期],\">=\"&DATEVALUE(_年份&\"年\"&每月支出汇总[[#Headers],[3月]]&\"1日\"),其他[发起支票请求的日期],\"<=\"&F$4)","v":{"v":0,"d":"¥0.00"}},{"$f":"SUMIFS(费用明细[支票金额],费用明细[总帐代码],每月支出汇总[[#This Row],[总帐代码]],费用明细[发票日期],\">=\"&G$3,费用明细[发票日期],\"<=\"&G$4)+SUMIFS(其他[支票金额],其他[总帐代码],每月支出汇总[[#This Row],[总帐代码]],其他[发起支票请求的日期],\">=\"&DATEVALUE(_年份&\"年\"&每月支出汇总[[#Headers],[4月]]&\"1日\"),其他[发起支票请求的日期],\"<=\"&G$4)","v":{"v":0,"d":"¥0.00"}},{"$f":"SUMIFS(费用明细[支票金额],费用明细[总帐代码],每月支出汇总[[#This Row],[总帐代码]],费用明细[发票日期],\">=\"&H$3,费用明细[发票日期],\"<=\"&H$4)+SUMIFS(其他[支票金额],其他[总帐代码],每月支出汇总[[#This Row],[总帐代码]],其他[发起支票请求的日期],\">=\"&DATEVALUE(_年份&\"年\"&每月支出汇总[[#Headers],[5月]]&\"1日\"),其他[发起支票请求的日期],\"<=\"&H$4)","v":{"v":0,"d":"¥0.00"}},{"$f":"SUMIFS(费用明细[支票金额],费用明细[总帐代码],每月支出汇总[[#This Row],[总帐代码]],费用明细[发票日期],\">=\"&I$3,费用明细[发票日期],\"<=\"&I$4)+SUMIFS(其他[支票金额],其他[总帐代码],每月支出汇总[[#This Row],[总帐代码]],其他[发起支票请求的日期],\">=\"&DATEVALUE(_年份&\"年\"&每月支出汇总[[#Headers],[6月]]&\"1日\"),其他[发起支票请求的日期],\"<=\"&I$4)","v":{"v":0,"d":"¥0.00"}},{"$f":"SUMIFS(费用明细[支票金额],费用明细[总帐代码],每月支出汇总[[#This Row],[总帐代码]],费用明细[发票日期],\">=\"&J$3,费用明细[发票日期],\"<=\"&J$4)+SUMIFS(其他[支票金额],其他[总帐代码],每月支出汇总[[#This Row],[总帐代码]],其他[发起支票请求的日期],\">=\"&DATEVALUE(_年份&\"年\"&每月支出汇总[[#Headers],[7月]]&\"1日\"),其他[发起支票请求的日期],\"<=\"&J$4)","v":{"v":0,"d":"¥0.00"}},{"$f":"SUMIFS(费用明细[支票金额],费用明细[总帐代码],每月支出汇总[[#This Row],[总帐代码]],费用明细[发票日期],\">=\"&K$3,费用明细[发票日期],\"<=\"&K$4)+SUMIFS(其他[支票金额],其他[总帐代码],每月支出汇总[[#This Row],[总帐代码]],其他[发起支票请求的日期],\">=\"&DATEVALUE(_年份&\"年\"&每月支出汇总[[#Headers],[8月]]&\"1日\"),其他[发起支票请求的日期],\"<=\"&K$4)","v":{"v":0,"d":"¥0.00"}},{"$f":"SUMIFS(费用明细[支票金额],费用明细[总帐代码],每月支出汇总[[#This Row],[总帐代码]],费用明细[发票日期],\">=\"&L$3,费用明细[发票日期],\"<=\"&L$4)+SUMIFS(其他[支票金额],其他[总帐代码],每月支出汇总[[#This Row],[总帐代码]],其他[发起支票请求的日期],\">=\"&DATEVALUE(_年份&\"年\"&每月支出汇总[[#Headers],[9月]]&\"1日\"),其他[发起支票请求的日期],\"<=\"&L$4)","v":{"v":0,"d":"¥0.00"}},{"$f":"SUMIFS(费用明细[支票金额],费用明细[总帐代码],每月支出汇总[[#This Row],[总帐代码]],费用明细[发票日期],\">=\"&M$3,费用明细[发票日期],\"<=\"&M$4)+SUMIFS(其他[支票金额],其他[总帐代码],每月支出汇总[[#This Row],[总帐代码]],其他[发起支票请求的日期],\">=\"&DATEVALUE(_年份&\"年\"&每月支出汇总[[#Headers],[10月]]&\"1日\"),其他[发起支票请求的日期],\"<=\"&M$4)","v":{"v":0,"d":"¥0.00"}},{"$f":"SUMIFS(费用明细[支票金额],费用明细[总帐代码],每月支出汇总[[#This Row],[总帐代码]],费用明细[发票日期],\">=\"&N$3,费用明细[发票日期],\"<=\"&N$4)+SUMIFS(其他[支票金额],其他[总帐代码],每月支出汇总[[#This Row],[总帐代码]],其他[发起支票请求的日期],\">=\"&DATEVALUE(_年份&\"年\"&每月支出汇总[[#Headers],[11月]]&\"1日\"),其他[发起支票请求的日期],\"<=\"&N$4)","v":{"v":0,"d":"¥0.00"}},{"$f":"SUMIFS(费用明细[支票金额],费用明细[总帐代码],每月支出汇总[[#This Row],[总帐代码]],费用明细[发票日期],\">=\"&O$3,费用明细[发票日期],\"<=\"&O$4)+SUMIFS(其他[支票金额],其他[总帐代码],每月支出汇总[[#This Row],[总帐代码]],其他[发起支票请求的日期],\">=\"&DATEVALUE(_年份&\"年\"&每月支出汇总[[#Headers],[12月]]&\"1日\"),其他[发起支票请求的日期],\"<=\"&O$4)","v":{"v":0,"d":"¥0.00"}},{"$f":"SUM(每月支出汇总[[#This Row],[1月]:[12月]])","v":{"v":0,"d":"¥0.00"}}]
[null,2000,"办公设备",{"$f":"SUMIFS(费用明细[支票金额],费用明细[总帐代码],每月支出汇总[[#This Row],[总帐代码]],费用明细[发票日期],\">=\"&D$3,费用明细[发票日期],\"<=\"&D$4)+SUMIFS(其他[支票金额],其他[总帐代码],每月支出汇总[[#This Row],[总帐代码]],其他[发起支票请求的日期],\">=\"&DATEVALUE(_年份&\"年\"&每月支出汇总[[#Headers],[1月]]&\"1日\"),其他[发起支票请求的日期],\"<=\"&D$4)","v":{"v":0,"d":"¥0.00"}},{"$f":"SUMIFS(费用明细[支票金额],费用明细[总帐代码],每月支出汇总[[#This Row],[总帐代码]],费用明细[发票日期],\">=\"&E$3,费用明细[发票日期],\"<=\"&E$4)+SUMIFS(其他[支票金额],其他[总帐代码],每月支出汇总[[#This Row],[总帐代码]],其他[发起支票请求的日期],\">=\"&DATEVALUE(_年份&\"年\"&每月支出汇总[[#Headers],[2月]]&\"1日\"),其他[发起支票请求的日期],\"<=\"&E$4)","v":{"v":0,"d":"¥0.00"}},{"$f":"SUMIFS(费用明细[支票金额],费用明细[总帐代码],每月支出汇总[[#This Row],[总帐代码]],费用明细[发票日期],\">=\"&F$3,费用明细[发票日期],\"<=\"&F$4)+SUMIFS(其他[支票金额],其他[总帐代码],每月支出汇总[[#This Row],[总帐代码]],其他[发起支票请求的日期],\">=\"&DATEVALUE(_年份&\"年\"&每月支出汇总[[#Headers],[3月]]&\"1日\"),其他[发起支票请求的日期],\"<=\"&F$4)","v":{"v":0,"d":"¥0.00"}},{"$f":"SUMIFS(费用明细[支票金额],费用明细[总帐代码],每月支出汇总[[#This Row],[总帐代码]],费用明细[发票日期],\">=\"&G$3,费用明细[发票日期],\"<=\"&G$4)+SUMIFS(其他[支票金额],其他[总帐代码],每月支出汇总[[#This Row],[总帐代码]],其他[发起支票请求的日期],\">=\"&DATEVALUE(_年份&\"年\"&每月支出汇总[[#Headers],[4月]]&\"1日\"),其他[发起支票请求的日期],\"<=\"&G$4)","v":{"v":0,"d":"¥0.00"}},{"$f":"SUMIFS(费用明细[支票金额],费用明细[总帐代码],每月支出汇总[[#This Row],[总帐代码]],费用明细[发票日期],\">=\"&H$3,费用明细[发票日期],\"<=\"&H$4)+SUMIFS(其他[支票金额],其他[总帐代码],每月支出汇总[[#This Row],[总帐代码]],其他[发起支票请求的日期],\">=\"&DATEVALUE(_年份&\"年\"&每月支出汇总[[#Headers],[5月]]&\"1日\"),其他[发起支票请求的日期],\"<=\"&H$4)","v":{"v":0,"d":"¥0.00"}},{"$f":"SUMIFS(费用明细[支票金额],费用明细[总帐代码],每月支出汇总[[#This Row],[总帐代码]],费用明细[发票日期],\">=\"&I$3,费用明细[发票日期],\"<=\"&I$4)+SUMIFS(其他[支票金额],其他[总帐代码],每月支出汇总[[#This Row],[总帐代码]],其他[发起支票请求的日期],\">=\"&DATEVALUE(_年份&\"年\"&每月支出汇总[[#Headers],[6月]]&\"1日\"),其他[发起支票请求的日期],\"<=\"&I$4)","v":{"v":0,"d":"¥0.00"}},{"$f":"SUMIFS(费用明细[支票金额],费用明细[总帐代码],每月支出汇总[[#This Row],[总帐代码]],费用明细[发票日期],\">=\"&J$3,费用明细[发票日期],\"<=\"&J$4)+SUMIFS(其他[支票金额],其他[总帐代码],每月支出汇总[[#This Row],[总帐代码]],其他[发起支票请求的日期],\">=\"&DATEVALUE(_年份&\"年\"&每月支出汇总[[#Headers],[7月]]&\"1日\"),其他[发起支票请求的日期],\"<=\"&J$4)","v":{"v":0,"d":"¥0.00"}},{"$f":"SUMIFS(费用明细[支票金额],费用明细[总帐代码],每月支出汇总[[#This Row],[总帐代码]],费用明细[发票日期],\">=\"&K$3,费用明细[发票日期],\"<=\"&K$4)+SUMIFS(其他[支票金额],其他[总帐代码],每月支出汇总[[#This Row],[总帐代码]],其他[发起支票请求的日期],\">=\"&DATEVALUE(_年份&\"年\"&每月支出汇总[[#Headers],[8月]]&\"1日\"),其他[发起支票请求的日期],\"<=\"&K$4)","v":{"v":0,"d":"¥0.00"}},{"$f":"SUMIFS(费用明细[支票金额],费用明细[总帐代码],每月支出汇总[[#This Row],[总帐代码]],费用明细[发票日期],\">=\"&L$3,费用明细[发票日期],\"<=\"&L$4)+SUMIFS(其他[支票金额],其他[总帐代码],每月支出汇总[[#This Row],[总帐代码]],其他[发起支票请求的日期],\">=\"&DATEVALUE(_年份&\"年\"&每月支出汇总[[#Headers],[9月]]&\"1日\"),其他[发起支票请求的日期],\"<=\"&L$4)","v":{"v":0,"d":"¥0.00"}},{"$f":"SUMIFS(费用明细[支票金额],费用明细[总帐代码],每月支出汇总[[#This Row],[总帐代码]],费用明细[发票日期],\">=\"&M$3,费用明细[发票日期],\"<=\"&M$4)+SUMIFS(其他[支票金额],其他[总帐代码],每月支出汇总[[#This Row],[总帐代码]],其他[发起支票请求的日期],\">=\"&DATEVALUE(_年份&\"年\"&每月支出汇总[[#Headers],[10月]]&\"1日\"),其他[发起支票请求的日期],\"<=\"&M$4)","v":{"v":0,"d":"¥0.00"}},{"$f":"SUMIFS(费用明细[支票金额],费用明细[总帐代码],每月支出汇总[[#This Row],[总帐代码]],费用明细[发票日期],\">=\"&N$3,费用明细[发票日期],\"<=\"&N$4)+SUMIFS(其他[支票金额],其他[总帐代码],每月支出汇总[[#This Row],[总帐代码]],其他[发起支票请求的日期],\">=\"&DATEVALUE(_年份&\"年\"&每月支出汇总[[#Headers],[11月]]&\"1日\"),其他[发起支票请求的日期],\"<=\"&N$4)","v":{"v":0,"d":"¥0.00"}},{"$f":"SUMIFS(费用明细[支票金额],费用明细[总帐代码],每月支出汇总[[#This Row],[总帐代码]],费用明细[发票日期],\">=\"&O$3,费用明细[发票日期],\"<=\"&O$4)+SUMIFS(其他[支票金额],其他[总帐代码],每月支出汇总[[#This Row],[总帐代码]],其他[发起支票请求的日期],\">=\"&DATEVALUE(_年份&\"年\"&每月支出汇总[[#Headers],[12月]]&\"1日\"),其他[发起支票请求的日期],\"<=\"&O$4)","v":{"v":0,"d":"¥0.00"}},{"$f":"SUM(每月支出汇总[[#This Row],[1月]:[12月]])","v":{"v":0,"d":"¥0.00"}}]
[null,3000,"打印机",{"$f":"SUMIFS(费用明细[支票金额],费用明细[总帐代码],每月支出汇总[[#This Row],[总帐代码]],费用明细[发票日期],\">=\"&D$3,费用明细[发票日期],\"<=\"&D$4)+SUMIFS(其他[支票金额],其他[总帐代码],每月支出汇总[[#This Row],[总帐代码]],其他[发起支票请求的日期],\">=\"&DATEVALUE(_年份&\"年\"&每月支出汇总[[#Headers],[1月]]&\"1日\"),其他[发起支票请求的日期],\"<=\"&D$4)","v":{"v":0,"d":"¥0.00"}},{"$f":"SUMIFS(费用明细[支票金额],费用明细[总帐代码],每月支出汇总[[#This Row],[总帐代码]],费用明细[发票日期],\">=\"&E$3,费用明细[发票日期],\"<=\"&E$4)+SUMIFS(其他[支票金额],其他[总帐代码],每月支出汇总[[#This Row],[总帐代码]],其他[发起支票请求的日期],\">=\"&DATEVALUE(_年份&\"年\"&每月支出汇总[[#Headers],[2月]]&\"1日\"),其他[发起支票请求的日期],\"<=\"&E$4)","v":{"v":0,"d":"¥0.00"}},{"$f":"SUMIFS(费用明细[支票金额],费用明细[总帐代码],每月支出汇总[[#This Row],[总帐代码]],费用明细[发票日期],\">=\"&F$3,费用明细[发票日期],\"<=\"&F$4)+SUMIFS(其他[支票金额],其他[总帐代码],每月支出汇总[[#This Row],[总帐代码]],其他[发起支票请求的日期],\">=\"&DATEVALUE(_年份&\"年\"&每月支出汇总[[#Headers],[3月]]&\"1日\"),其他[发起支票请求的日期],\"<=\"&F$4)","v":{"v":0,"d":"¥0.00"}},{"$f":"SUMIFS(费用明细[支票金额],费用明细[总帐代码],每月支出汇总[[#This Row],[总帐代码]],费用明细[发票日期],\">=\"&G$3,费用明细[发票日期],\"<=\"&G$4)+SUMIFS(其他[支票金额],其他[总帐代码],每月支出汇总[[#This Row],[总帐代码]],其他[发起支票请求的日期],\">=\"&DATEVALUE(_年份&\"年\"&每月支出汇总[[#Headers],[4月]]&\"1日\"),其他[发起支票请求的日期],\"<=\"&G$4)","v":{"v":0,"d":"¥0.00"}},{"$f":"SUMIFS(费用明细[支票金额],费用明细[总帐代码],每月支出汇总[[#This Row],[总帐代码]],费用明细[发票日期],\">=\"&H$3,费用明细[发票日期],\"<=\"&H$4)+SUMIFS(其他[支票金额],其他[总帐代码],每月支出汇总[[#This Row],[总帐代码]],其他[发起支票请求的日期],\">=\"&DATEVALUE(_年份&\"年\"&每月支出汇总[[#Headers],[5月]]&\"1日\"),其他[发起支票请求的日期],\"<=\"&H$4)","v":{"v":0,"d":"¥0.00"}},{"$f":"SUMIFS(费用明细[支票金额],费用明细[总帐代码],每月支出汇总[[#This Row],[总帐代码]],费用明细[发票日期],\">=\"&I$3,费用明细[发票日期],\"<=\"&I$4)+SUMIFS(其他[支票金额],其他[总帐代码],每月支出汇总[[#This Row],[总帐代码]],其他[发起支票请求的日期],\">=\"&DATEVALUE(_年份&\"年\"&每月支出汇总[[#Headers],[6月]]&\"1日\"),其他[发起支票请求的日期],\"<=\"&I$4)","v":{"v":0,"d":"¥0.00"}},{"$f":"SUMIFS(费用明细[支票金额],费用明细[总帐代码],每月支出汇总[[#This Row],[总帐代码]],费用明细[发票日期],\">=\"&J$3,费用明细[发票日期],\"<=\"&J$4)+SUMIFS(其他[支票金额],其他[总帐代码],每月支出汇总[[#This Row],[总帐代码]],其他[发起支票请求的日期],\">=\"&DATEVALUE(_年份&\"年\"&每月支出汇总[[#Headers],[7月]]&\"1日\"),其他[发起支票请求的日期],\"<=\"&J$4)","v":{"v":0,"d":"¥0.00"}},{"$f":"SUMIFS(费用明细[支票金额],费用明细[总帐代码],每月支出汇总[[#This Row],[总帐代码]],费用明细[发票日期],\">=\"&K$3,费用明细[发票日期],\"<=\"&K$4)+SUMIFS(其他[支票金额],其他[总帐代码],每月支出汇总[[#This Row],[总帐代码]],其他[发起支票请求的日期],\">=\"&DATEVALUE(_年份&\"年\"&每月支出汇总[[#Headers],[8月]]&\"1日\"),其他[发起支票请求的日期],\"<=\"&K$4)","v":{"v":0,"d":"¥0.00"}},{"$f":"SUMIFS(费用明细[支票金额],费用明细[总帐代码],每月支出汇总[[#This Row],[总帐代码]],费用明细[发票日期],\">=\"&L$3,费用明细[发票日期],\"<=\"&L$4)+SUMIFS(其他[支票金额],其他[总帐代码],每月支出汇总[[#This Row],[总帐代码]],其他[发起支票请求的日期],\">=\"&DATEVALUE(_年份&\"年\"&每月支出汇总[[#Headers],[9月]]&\"1日\"),其他[发起支票请求的日期],\"<=\"&L$4)","v":{"v":0,"d":"¥0.00"}},{"$f":"SUMIFS(费用明细[支票金额],费用明细[总帐代码],每月支出汇总[[#This Row],[总帐代码]],费用明细[发票日期],\">=\"&M$3,费用明细[发票日期],\"<=\"&M$4)+SUMIFS(其他[支票金额],其他[总帐代码],每月支出汇总[[#This Row],[总帐代码]],其他[发起支票请求的日期],\">=\"&DATEVALUE(_年份&\"年\"&每月支出汇总[[#Headers],[10月]]&\"1日\"),其他[发起支票请求的日期],\"<=\"&M$4)","v":{"v":0,"d":"¥0.00"}},{"$f":"SUMIFS(费用明细[支票金额],费用明细[总帐代码],每月支出汇总[[#This Row],[总帐代码]],费用明细[发票日期],\">=\"&N$3,费用明细[发票日期],\"<=\"&N$4)+SUMIFS(其他[支票金额],其他[总帐代码],每月支出汇总[[#This Row],[总帐代码]],其他[发起支票请求的日期],\">=\"&DATEVALUE(_年份&\"年\"&每月支出汇总[[#Headers],[11月]]&\"1日\"),其他[发起支票请求的日期],\"<=\"&N$4)","v":{"v":0,"d":"¥0.00"}},{"$f":"SUMIFS(费用明细[支票金额],费用明细[总帐代码],每月支出汇总[[#This Row],[总帐代码]],费用明细[发票日期],\">=\"&O$3,费用明细[发票日期],\"<=\"&O$4)+SUMIFS(其他[支票金额],其他[总帐代码],每月支出汇总[[#This Row],[总帐代码]],其他[发起支票请求的日期],\">=\"&DATEVALUE(_年份&\"年\"&每月支出汇总[[#Headers],[12月]]&\"1日\"),其他[发起支票请求的日期],\"<=\"&O$4)","v":{"v":0,"d":"¥0.00"}},{"$f":"SUM(每月支出汇总[[#This Row],[1月]:[12月]])","v":{"v":0,"d":"¥0.00"}}]
[null,4000,"服务器成本",{"$f":"SUMIFS(费用明细[支票金额],费用明细[总帐代码],每月支出汇总[[#This Row],[总帐代码]],费用明细[发票日期],\">=\"&D$3,费用明细[发票日期],\"<=\"&D$4)+SUMIFS(其他[支票金额],其他[总帐代码],每月支出汇总[[#This Row],[总帐代码]],其他[发起支票请求的日期],\">=\"&DATEVALUE(_年份&\"年\"&每月支出汇总[[#Headers],[1月]]&\"1日\"),其他[发起支票请求的日期],\"<=\"&D$4)","v":{"v":0,"d":"¥0.00"}},{"$f":"SUMIFS(费用明细[支票金额],费用明细[总帐代码],每月支出汇总[[#This Row],[总帐代码]],费用明细[发票日期],\">=\"&E$3,费用明细[发票日期],\"<=\"&E$4)+SUMIFS(其他[支票金额],其他[总帐代码],每月支出汇总[[#This Row],[总帐代码]],其他[发起支票请求的日期],\">=\"&DATEVALUE(_年份&\"年\"&每月支出汇总[[#Headers],[2月]]&\"1日\"),其他[发起支票请求的日期],\"<=\"&E$4)","v":{"v":0,"d":"¥0.00"}},{"$f":"SUMIFS(费用明细[支票金额],费用明细[总帐代码],每月支出汇总[[#This Row],[总帐代码]],费用明细[发票日期],\">=\"&F$3,费用明细[发票日期],\"<=\"&F$4)+SUMIFS(其他[支票金额],其他[总帐代码],每月支出汇总[[#This Row],[总帐代码]],其他[发起支票请求的日期],\">=\"&DATEVALUE(_年份&\"年\"&每月支出汇总[[#Headers],[3月]]&\"1日\"),其他[发起支票请求的日期],\"<=\"&F$4)","v":{"v":0,"d":"¥0.00"}},{"$f":"SUMIFS(费用明细[支票金额],费用明细[总帐代码],每月支出汇总[[#This Row],[总帐代码]],费用明细[发票日期],\">=\"&G$3,费用明细[发票日期],\"<=\"&G$4)+SUMIFS(其他[支票金额],其他[总帐代码],每月支出汇总[[#This Row],[总帐代码]],其他[发起支票请求的日期],\">=\"&DATEVALUE(_年份&\"年\"&每月支出汇总[[#Headers],[4月]]&\"1日\"),其他[发起支票请求的日期],\"<=\"&G$4)","v":{"v":0,"d":"¥0.00"}},{"$f":"SUMIFS(费用明细[支票金额],费用明细[总帐代码],每月支出汇总[[#This Row],[总帐代码]],费用明细[发票日期],\">=\"&H$3,费用明细[发票日期],\"<=\"&H$4)+SUMIFS(其他[支票金额],其他[总帐代码],每月支出汇总[[#This Row],[总帐代码]],其他[发起支票请求的日期],\">=\"&DATEVALUE(_年份&\"年\"&每月支出汇总[[#Headers],[5月]]&\"1日\"),其他[发起支票请求的日期],\"<=\"&H$4)","v":{"v":0,"d":"¥0.00"}},{"$f":"SUMIFS(费用明细[支票金额],费用明细[总帐代码],每月支出汇总[[#This Row],[总帐代码]],费用明细[发票日期],\">=\"&I$3,费用明细[发票日期],\"<=\"&I$4)+SUMIFS(其他[支票金额],其他[总帐代码],每月支出汇总[[#This Row],[总帐代码]],其他[发起支票请求的日期],\">=\"&DATEVALUE(_年份&\"年\"&每月支出汇总[[#Headers],[6月]]&\"1日\"),其他[发起支票请求的日期],\"<=\"&I$4)","v":{"v":0,"d":"¥0.00"}},{"$f":"SUMIFS(费用明细[支票金额],费用明细[总帐代码],每月支出汇总[[#This Row],[总帐代码]],费用明细[发票日期],\">=\"&J$3,费用明细[发票日期],\"<=\"&J$4)+SUMIFS(其他[支票金额],其他[总帐代码],每月支出汇总[[#This Row],[总帐代码]],其他[发起支票请求的日期],\">=\"&DATEVALUE(_年份&\"年\"&每月支出汇总[[#Headers],[7月]]&\"1日\"),其他[发起支票请求的日期],\"<=\"&J$4)","v":{"v":0,"d":"¥0.00"}},{"$f":"SUMIFS(费用明细[支票金额],费用明细[总帐代码],每月支出汇总[[#This Row],[总帐代码]],费用明细[发票日期],\">=\"&K$3,费用明细[发票日期],\"<=\"&K$4)+SUMIFS(其他[支票金额],其他[总帐代码],每月支出汇总[[#This Row],[总帐代码]],其他[发起支票请求的日期],\">=\"&DATEVALUE(_年份&\"年\"&每月支出汇总[[#Headers],[8月]]&\"1日\"),其他[发起支票请求的日期],\"<=\"&K$4)","v":{"v":0,"d":"¥0.00"}},{"$f":"SUMIFS(费用明细[支票金额],费用明细[总帐代码],每月支出汇总[[#This Row],[总帐代码]],费用明细[发票日期],\">=\"&L$3,费用明细[发票日期],\"<=\"&L$4)+SUMIFS(其他[支票金额],其他[总帐代码],每月支出汇总[[#This Row],[总帐代码]],其他[发起支票请求的日期],\">=\"&DATEVALUE(_年份&\"年\"&每月支出汇总[[#Headers],[9月]]&\"1日\"),其他[发起支票请求的日期],\"<=\"&L$4)","v":{"v":0,"d":"¥0.00"}},{"$f":"SUMIFS(费用明细[支票金额],费用明细[总帐代码],每月支出汇总[[#This Row],[总帐代码]],费用明细[发票日期],\">=\"&M$3,费用明细[发票日期],\"<=\"&M$4)+SUMIFS(其他[支票金额],其他[总帐代码],每月支出汇总[[#This Row],[总帐代码]],其他[发起支票请求的日期],\">=\"&DATEVALUE(_年份&\"年\"&每月支出汇总[[#Headers],[10月]]&\"1日\"),其他[发起支票请求的日期],\"<=\"&M$4)","v":{"v":0,"d":"¥0.00"}},{"$f":"SUMIFS(费用明细[支票金额],费用明细[总帐代码],每月支出汇总[[#This Row],[总帐代码]],费用明细[发票日期],\">=\"&N$3,费用明细[发票日期],\"<=\"&N$4)+SUMIFS(其他[支票金额],其他[总帐代码],每月支出汇总[[#This Row],[总帐代码]],其他[发起支票请求的日期],\">=\"&DATEVALUE(_年份&\"年\"&每月支出汇总[[#Headers],[11月]]&\"1日\"),其他[发起支票请求的日期],\"<=\"&N$4)","v":{"v":0,"d":"¥0.00"}},{"$f":"SUMIFS(费用明细[支票金额],费用明细[总帐代码],每月支出汇总[[#This Row],[总帐代码]],费用明细[发票日期],\">=\"&O$3,费用明细[发票日期],\"<=\"&O$4)+SUMIFS(其他[支票金额],其他[总帐代码],每月支出汇总[[#This Row],[总帐代码]],其他[发起支票请求的日期],\">=\"&DATEVALUE(_年份&\"年\"&每月支出汇总[[#Headers],[12月]]&\"1日\"),其他[发起支票请求的日期],\"<=\"&O$4)","v":{"v":0,"d":"¥0.00"}},{"$f":"SUM(每月支出汇总[[#This Row],[1月]:[12月]])","v":{"v":0,"d":"¥0.00"}}]
[null,5000,"日用品",{"$f":"SUMIFS(费用明细[支票金额],费用明细[总帐代码],每月支出汇总[[#This Row],[总帐代码]],费用明细[发票日期],\">=\"&D$3,费用明细[发票日期],\"<=\"&D$4)+SUMIFS(其他[支票金额],其他[总帐代码],每月支出汇总[[#This Row],[总帐代码]],其他[发起支票请求的日期],\">=\"&DATEVALUE(_年份&\"年\"&每月支出汇总[[#Headers],[1月]]&\"1日\"),其他[发起支票请求的日期],\"<=\"&D$4)","v":{"v":0,"d":"¥0.00"}},{"$f":"SUMIFS(费用明细[支票金额],费用明细[总帐代码],每月支出汇总[[#This Row],[总帐代码]],费用明细[发票日期],\">=\"&E$3,费用明细[发票日期],\"<=\"&E$4)+SUMIFS(其他[支票金额],其他[总帐代码],每月支出汇总[[#This Row],[总帐代码]],其他[发起支票请求的日期],\">=\"&DATEVALUE(_年份&\"年\"&每月支出汇总[[#Headers],[2月]]&\"1日\"),其他[发起支票请求的日期],\"<=\"&E$4)","v":{"v":0,"d":"¥0.00"}},{"$f":"SUMIFS(费用明细[支票金额],费用明细[总帐代码],每月支出汇总[[#This Row],[总帐代码]],费用明细[发票日期],\">=\"&F$3,费用明细[发票日期],\"<=\"&F$4)+SUMIFS(其他[支票金额],其他[总帐代码],每月支出汇总[[#This Row],[总帐代码]],其他[发起支票请求的日期],\">=\"&DATEVALUE(_年份&\"年\"&每月支出汇总[[#Headers],[3月]]&\"1日\"),其他[发起支票请求的日期],\"<=\"&F$4)","v":{"v":0,"d":"¥0.00"}},{"$f":"SUMIFS(费用明细[支票金额],费用明细[总帐代码],每月支出汇总[[#This Row],[总帐代码]],费用明细[发票日期],\">=\"&G$3,费用明细[发票日期],\"<=\"&G$4)+SUMIFS(其他[支票金额],其他[总帐代码],每月支出汇总[[#This Row],[总帐代码]],其他[发起支票请求的日期],\">=\"&DATEVALUE(_年份&\"年\"&每月支出汇总[[#Headers],[4月]]&\"1日\"),其他[发起支票请求的日期],\"<=\"&G$4)","v":{"v":0,"d":"¥0.00"}},{"$f":"SUMIFS(费用明细[支票金额],费用明细[总帐代码],每月支出汇总[[#This Row],[总帐代码]],费用明细[发票日期],\">=\"&H$3,费用明细[发票日期],\"<=\"&H$4)+SUMIFS(其他[支票金额],其他[总帐代码],每月支出汇总[[#This Row],[总帐代码]],其他[发起支票请求的日期],\">=\"&DATEVALUE(_年份&\"年\"&每月支出汇总[[#Headers],[5月]]&\"1日\"),其他[发起支票请求的日期],\"<=\"&H$4)","v":{"v":0,"d":"¥0.00"}},{"$f":"SUMIFS(费用明细[支票金额],费用明细[总帐代码],每月支出汇总[[#This Row],[总帐代码]],费用明细[发票日期],\">=\"&I$3,费用明细[发票日期],\"<=\"&I$4)+SUMIFS(其他[支票金额],其他[总帐代码],每月支出汇总[[#This Row],[总帐代码]],其他[发起支票请求的日期],\">=\"&DATEVALUE(_年份&\"年\"&每月支出汇总[[#Headers],[6月]]&\"1日\"),其他[发起支票请求的日期],\"<=\"&I$4)","v":{"v":0,"d":"¥0.00"}},{"$f":"SUMIFS(费用明细[支票金额],费用明细[总帐代码],每月支出汇总[[#This Row],[总帐代码]],费用明细[发票日期],\">=\"&J$3,费用明细[发票日期],\"<=\"&J$4)+SUMIFS(其他[支票金额],其他[总帐代码],每月支出汇总[[#This Row],[总帐代码]],其他[发起支票请求的日期],\">=\"&DATEVALUE(_年份&\"年\"&每月支出汇总[[#Headers],[7月]]&\"1日\"),其他[发起支票请求的日期],\"<=\"&J$4)","v":{"v":0,"d":"¥0.00"}},{"$f":"SUMIFS(费用明细[支票金额],费用明细[总帐代码],每月支出汇总[[#This Row],[总帐代码]],费用明细[发票日期],\">=\"&K$3,费用明细[发票日期],\"<=\"&K$4)+SUMIFS(其他[支票金额],其他[总帐代码],每月支出汇总[[#This Row],[总帐代码]],其他[发起支票请求的日期],\">=\"&DATEVALUE(_年份&\"年\"&每月支出汇总[[#Headers],[8月]]&\"1日\"),其他[发起支票请求的日期],\"<=\"&K$4)","v":{"v":0,"d":"¥0.00"}},{"$f":"SUMIFS(费用明细[支票金额],费用明细[总帐代码],每月支出汇总[[#This Row],[总帐代码]],费用明细[发票日期],\">=\"&L$3,费用明细[发票日期],\"<=\"&L$4)+SUMIFS(其他[支票金额],其他[总帐代码],每月支出汇总[[#This Row],[总帐代码]],其他[发起支票请求的日期],\">=\"&DATEVALUE(_年份&\"年\"&每月支出汇总[[#Headers],[9月]]&\"1日\"),其他[发起支票请求的日期],\"<=\"&L$4)","v":{"v":0,"d":"¥0.00"}},{"$f":"SUMIFS(费用明细[支票金额],费用明细[总帐代码],每月支出汇总[[#This Row],[总帐代码]],费用明细[发票日期],\">=\"&M$3,费用明细[发票日期],\"<=\"&M$4)+SUMIFS(其他[支票金额],其他[总帐代码],每月支出汇总[[#This Row],[总帐代码]],其他[发起支票请求的日期],\">=\"&DATEVALUE(_年份&\"年\"&每月支出汇总[[#Headers],[10月]]&\"1日\"),其他[发起支票请求的日期],\"<=\"&M$4)","v":{"v":0,"d":"¥0.00"}},{"$f":"SUMIFS(费用明细[支票金额],费用明细[总帐代码],每月支出汇总[[#This Row],[总帐代码]],费用明细[发票日期],\">=\"&N$3,费用明细[发票日期],\"<=\"&N$4)+SUMIFS(其他[支票金额],其他[总帐代码],每月支出汇总[[#This Row],[总帐代码]],其他[发起支票请求的日期],\">=\"&DATEVALUE(_年份&\"年\"&每月支出汇总[[#Headers],[11月]]&\"1日\"),其他[发起支票请求的日期],\"<=\"&N$4)","v":{"v":0,"d":"¥0.00"}},{"$f":"SUMIFS(费用明细[支票金额],费用明细[总帐代码],每月支出汇总[[#This Row],[总帐代码]],费用明细[发票日期],\">=\"&O$3,费用明细[发票日期],\"<=\"&O$4)+SUMIFS(其他[支票金额],其他[总帐代码],每月支出汇总[[#This Row],[总帐代码]],其他[发起支票请求的日期],\">=\"&DATEVALUE(_年份&\"年\"&每月支出汇总[[#Headers],[12月]]&\"1日\"),其他[发起支票请求的日期],\"<=\"&O$4)","v":{"v":0,"d":"¥0.00"}},{"$f":"SUM(每月支出汇总[[#This Row],[1月]:[12月]])","v":{"v":0,"d":"¥0.00"}}]
[null,6000,"客户端支出",{"$f":"SUMIFS(费用明细[支票金额],费用明细[总帐代码],每月支出汇总[[#This Row],[总帐代码]],费用明细[发票日期],\">=\"&D$3,费用明细[发票日期],\"<=\"&D$4)+SUMIFS(其他[支票金额],其他[总帐代码],每月支出汇总[[#This Row],[总帐代码]],其他[发起支票请求的日期],\">=\"&DATEVALUE(_年份&\"年\"&每月支出汇总[[#Headers],[1月]]&\"1日\"),其他[发起支票请求的日期],\"<=\"&D$4)","v":{"v":0,"d":"¥0.00"}},{"$f":"SUMIFS(费用明细[支票金额],费用明细[总帐代码],每月支出汇总[[#This Row],[总帐代码]],费用明细[发票日期],\">=\"&E$3,费用明细[发票日期],\"<=\"&E$4)+SUMIFS(其他[支票金额],其他[总帐代码],每月支出汇总[[#This Row],[总帐代码]],其他[发起支票请求的日期],\">=\"&DATEVALUE(_年份&\"年\"&每月支出汇总[[#Headers],[2月]]&\"1日\"),其他[发起支票请求的日期],\"<=\"&E$4)","v":{"v":0,"d":"¥0.00"}},{"$f":"SUMIFS(费用明细[支票金额],费用明细[总帐代码],每月支出汇总[[#This Row],[总帐代码]],费用明细[发票日期],\">=\"&F$3,费用明细[发票日期],\"<=\"&F$4)+SUMIFS(其他[支票金额],其他[总帐代码],每月支出汇总[[#This Row],[总帐代码]],其他[发起支票请求的日期],\">=\"&DATEVALUE(_年份&\"年\"&每月支出汇总[[#Headers],[3月]]&\"1日\"),其他[发起支票请求的日期],\"<=\"&F$4)","v":{"v":0,"d":"¥0.00"}},{"$f":"SUMIFS(费用明细[支票金额],费用明细[总帐代码],每月支出汇总[[#This Row],[总帐代码]],费用明细[发票日期],\">=\"&G$3,费用明细[发票日期],\"<=\"&G$4)+SUMIFS(其他[支票金额],其他[总帐代码],每月支出汇总[[#This Row],[总帐代码]],其他[发起支票请求的日期],\">=\"&DATEVALUE(_年份&\"年\"&每月支出汇总[[#Headers],[4月]]&\"1日\"),其他[发起支票请求的日期],\"<=\"&G$4)","v":{"v":0,"d":"¥0.00"}},{"$f":"SUMIFS(费用明细[支票金额],费用明细[总帐代码],每月支出汇总[[#This Row],[总帐代码]],费用明细[发票日期],\">=\"&H$3,费用明细[发票日期],\"<=\"&H$4)+SUMIFS(其他[支票金额],其他[总帐代码],每月支出汇总[[#This Row],[总帐代码]],其他[发起支票请求的日期],\">=\"&DATEVALUE(_年份&\"年\"&每月支出汇总[[#Headers],[5月]]&\"1日\"),其他[发起支票请求的日期],\"<=\"&H$4)","v":{"v":0,"d":"¥0.00"}},{"$f":"SUMIFS(费用明细[支票金额],费用明细[总帐代码],每月支出汇总[[#This Row],[总帐代码]],费用明细[发票日期],\">=\"&I$3,费用明细[发票日期],\"<=\"&I$4)+SUMIFS(其他[支票金额],其他[总帐代码],每月支出汇总[[#This Row],[总帐代码]],其他[发起支票请求的日期],\">=\"&DATEVALUE(_年份&\"年\"&每月支出汇总[[#Headers],[6月]]&\"1日\"),其他[发起支票请求的日期],\"<=\"&I$4)","v":{"v":0,"d":"¥0.00"}},{"$f":"SUMIFS(费用明细[支票金额],费用明细[总帐代码],每月支出汇总[[#This Row],[总帐代码]],费用明细[发票日期],\">=\"&J$3,费用明细[发票日期],\"<=\"&J$4)+SUMIFS(其他[支票金额],其他[总帐代码],每月支出汇总[[#This Row],[总帐代码]],其他[发起支票请求的日期],\">=\"&DATEVALUE(_年份&\"年\"&每月支出汇总[[#Headers],[7月]]&\"1日\"),其他[发起支票请求的日期],\"<=\"&J$4)","v":{"v":0,"d":"¥0.00"}},{"$f":"SUMIFS(费用明细[支票金额],费用明细[总帐代码],每月支出汇总[[#This Row],[总帐代码]],费用明细[发票日期],\">=\"&K$3,费用明细[发票日期],\"<=\"&K$4)+SUMIFS(其他[支票金额],其他[总帐代码],每月支出汇总[[#This Row],[总帐代码]],其他[发起支票请求的日期],\">=\"&DATEVALUE(_年份&\"年\"&每月支出汇总[[#Headers],[8月]]&\"1日\"),其他[发起支票请求的日期],\"<=\"&K$4)","v":{"v":0,"d":"¥0.00"}},{"$f":"SUMIFS(费用明细[支票金额],费用明细[总帐代码],每月支出汇总[[#This Row],[总帐代码]],费用明细[发票日期],\">=\"&L$3,费用明细[发票日期],\"<=\"&L$4)+SUMIFS(其他[支票金额],其他[总帐代码],每月支出汇总[[#This Row],[总帐代码]],其他[发起支票请求的日期],\">=\"&DATEVALUE(_年份&\"年\"&每月支出汇总[[#Headers],[9月]]&\"1日\"),其他[发起支票请求的日期],\"<=\"&L$4)","v":{"v":0,"d":"¥0.00"}},{"$f":"SUMIFS(费用明细[支票金额],费用明细[总帐代码],每月支出汇总[[#This Row],[总帐代码]],费用明细[发票日期],\">=\"&M$3,费用明细[发票日期],\"<=\"&M$4)+SUMIFS(其他[支票金额],其他[总帐代码],每月支出汇总[[#This Row],[总帐代码]],其他[发起支票请求的日期],\">=\"&DATEVALUE(_年份&\"年\"&每月支出汇总[[#Headers],[10月]]&\"1日\"),其他[发起支票请求的日期],\"<=\"&M$4)","v":{"v":0,"d":"¥0.00"}},{"$f":"SUMIFS(费用明细[支票金额],费用明细[总帐代码],每月支出汇总[[#This Row],[总帐代码]],费用明细[发票日期],\">=\"&N$3,费用明细[发票日期],\"<=\"&N$4)+SUMIFS(其他[支票金额],其他[总帐代码],每月支出汇总[[#This Row],[总帐代码]],其他[发起支票请求的日期],\">=\"&DATEVALUE(_年份&\"年\"&每月支出汇总[[#Headers],[11月]]&\"1日\"),其他[发起支票请求的日期],\"<=\"&N$4)","v":{"v":0,"d":"¥0.00"}},{"$f":"SUMIFS(费用明细[支票金额],费用明细[总帐代码],每月支出汇总[[#This Row],[总帐代码]],费用明细[发票日期],\">=\"&O$3,费用明细[发票日期],\"<=\"&O$4)+SUMIFS(其他[支票金额],其他[总帐代码],每月支出汇总[[#This Row],[总帐代码]],其他[发起支票请求的日期],\">=\"&DATEVALUE(_年份&\"年\"&每月支出汇总[[#Headers],[12月]]&\"1日\"),其他[发起支票请求的日期],\"<=\"&O$4)","v":{"v":0,"d":"¥0.00"}},{"$f":"SUM(每月支出汇总[[#This Row],[1月]:[12月]])","v":{"v":0,"d":"¥0.00"}}]
[null,7000,"计算机",{"$f":"SUMIFS(费用明细[支票金额],费用明细[总帐代码],每月支出汇总[[#This Row],[总帐代码]],费用明细[发票日期],\">=\"&D$3,费用明细[发票日期],\"<=\"&D$4)+SUMIFS(其他[支票金额],其他[总帐代码],每月支出汇总[[#This Row],[总帐代码]],其他[发起支票请求的日期],\">=\"&DATEVALUE(_年份&\"年\"&每月支出汇总[[#Headers],[1月]]&\"1日\"),其他[发起支票请求的日期],\"<=\"&D$4)","v":{"v":0,"d":"¥0.00"}},{"$f":"SUMIFS(费用明细[支票金额],费用明细[总帐代码],每月支出汇总[[#This Row],[总帐代码]],费用明细[发票日期],\">=\"&E$3,费用明细[发票日期],\"<=\"&E$4)+SUMIFS(其他[支票金额],其他[总帐代码],每月支出汇总[[#This Row],[总帐代码]],其他[发起支票请求的日期],\">=\"&DATEVALUE(_年份&\"年\"&每月支出汇总[[#Headers],[2月]]&\"1日\"),其他[发起支票请求的日期],\"<=\"&E$4)","v":{"v":0,"d":"¥0.00"}},{"$f":"SUMIFS(费用明细[支票金额],费用明细[总帐代码],每月支出汇总[[#This Row],[总帐代码]],费用明细[发票日期],\">=\"&F$3,费用明细[发票日期],\"<=\"&F$4)+SUMIFS(其他[支票金额],其他[总帐代码],每月支出汇总[[#This Row],[总帐代码]],其他[发起支票请求的日期],\">=\"&DATEVALUE(_年份&\"年\"&每月支出汇总[[#Headers],[3月]]&\"1日\"),其他[发起支票请求的日期],\"<=\"&F$4)","v":{"v":0,"d":"¥0.00"}},{"$f":"SUMIFS(费用明细[支票金额],费用明细[总帐代码],每月支出汇总[[#This Row],[总帐代码]],费用明细[发票日期],\">=\"&G$3,费用明细[发票日期],\"<=\"&G$4)+SUMIFS(其他[支票金额],其他[总帐代码],每月支出汇总[[#This Row],[总帐代码]],其他[发起支票请求的日期],\">=\"&DATEVALUE(_年份&\"年\"&每月支出汇总[[#Headers],[4月]]&\"1日\"),其他[发起支票请求的日期],\"<=\"&G$4)","v":{"v":0,"d":"¥0.00"}},{"$f":"SUMIFS(费用明细[支票金额],费用明细[总帐代码],每月支出汇总[[#This Row],[总帐代码]],费用明细[发票日期],\">=\"&H$3,费用明细[发票日期],\"<=\"&H$4)+SUMIFS(其他[支票金额],其他[总帐代码],每月支出汇总[[#This Row],[总帐代码]],其他[发起支票请求的日期],\">=\"&DATEVALUE(_年份&\"年\"&每月支出汇总[[#Headers],[5月]]&\"1日\"),其他[发起支票请求的日期],\"<=\"&H$4)","v":{"v":0,"d":"¥0.00"}},{"$f":"SUMIFS(费用明细[支票金额],费用明细[总帐代码],每月支出汇总[[#This Row],[总帐代码]],费用明细[发票日期],\">=\"&I$3,费用明细[发票日期],\"<=\"&I$4)+SUMIFS(其他[支票金额],其他[总帐代码],每月支出汇总[[#This Row],[总帐代码]],其他[发起支票请求的日期],\">=\"&DATEVALUE(_年份&\"年\"&每月支出汇总[[#Headers],[6月]]&\"1日\"),其他[发起支票请求的日期],\"<=\"&I$4)","v":{"v":0,"d":"¥0.00"}},{"$f":"SUMIFS(费用明细[支票金额],费用明细[总帐代码],每月支出汇总[[#This Row],[总帐代码]],费用明细[发票日期],\">=\"&J$3,费用明细[发票日期],\"<=\"&J$4)+SUMIFS(其他[支票金额],其他[总帐代码],每月支出汇总[[#This Row],[总帐代码]],其他[发起支票请求的日期],\">=\"&DATEVALUE(_年份&\"年\"&每月支出汇总[[#Headers],[7月]]&\"1日\"),其他[发起支票请求的日期],\"<=\"&J$4)","v":{"v":0,"d":"¥0.00"}},{"$f":"SUMIFS(费用明细[支票金额],费用明细[总帐代码],每月支出汇总[[#This Row],[总帐代码]],费用明细[发票日期],\">=\"&K$3,费用明细[发票日期],\"<=\"&K$4)+SUMIFS(其他[支票金额],其他[总帐代码],每月支出汇总[[#This Row],[总帐代码]],其他[发起支票请求的日期],\">=\"&DATEVALUE(_年份&\"年\"&每月支出汇总[[#Headers],[8月]]&\"1日\"),其他[发起支票请求的日期],\"<=\"&K$4)","v":{"v":0,"d":"¥0.00"}},{"$f":"SUMIFS(费用明细[支票金额],费用明细[总帐代码],每月支出汇总[[#This Row],[总帐代码]],费用明细[发票日期],\">=\"&L$3,费用明细[发票日期],\"<=\"&L$4)+SUMIFS(其他[支票金额],其他[总帐代码],每月支出汇总[[#This Row],[总帐代码]],其他[发起支票请求的日期],\">=\"&DATEVALUE(_年份&\"年\"&每月支出汇总[[#Headers],[9月]]&\"1日\"),其他[发起支票请求的日期],\"<=\"&L$4)","v":{"v":0,"d":"¥0.00"}},{"$f":"SUMIFS(费用明细[支票金额],费用明细[总帐代码],每月支出汇总[[#This Row],[总帐代码]],费用明细[发票日期],\">=\"&M$3,费用明细[发票日期],\"<=\"&M$4)+SUMIFS(其他[支票金额],其他[总帐代码],每月支出汇总[[#This Row],[总帐代码]],其他[发起支票请求的日期],\">=\"&DATEVALUE(_年份&\"年\"&每月支出汇总[[#Headers],[10月]]&\"1日\"),其他[发起支票请求的日期],\"<=\"&M$4)","v":{"v":0,"d":"¥0.00"}},{"$f":"SUMIFS(费用明细[支票金额],费用明细[总帐代码],每月支出汇总[[#This Row],[总帐代码]],费用明细[发票日期],\">=\"&N$3,费用明细[发票日期],\"<=\"&N$4)+SUMIFS(其他[支票金额],其他[总帐代码],每月支出汇总[[#This Row],[总帐代码]],其他[发起支票请求的日期],\">=\"&DATEVALUE(_年份&\"年\"&每月支出汇总[[#Headers],[11月]]&\"1日\"),其他[发起支票请求的日期],\"<=\"&N$4)","v":{"v":0,"d":"¥0.00"}},{"$f":"SUMIFS(费用明细[支票金额],费用明细[总帐代码],每月支出汇总[[#This Row],[总帐代码]],费用明细[发票日期],\">=\"&O$3,费用明细[发票日期],\"<=\"&O$4)+SUMIFS(其他[支票金额],其他[总帐代码],每月支出汇总[[#This Row],[总帐代码]],其他[发起支票请求的日期],\">=\"&DATEVALUE(_年份&\"年\"&每月支出汇总[[#Headers],[12月]]&\"1日\"),其他[发起支票请求的日期],\"<=\"&O$4)","v":{"v":0,"d":"¥0.00"}},{"$f":"SUM(每月支出汇总[[#This Row],[1月]:[12月]])","v":{"v":0,"d":"¥0.00"}}]
[null,8000,"医疗计划",{"$f":"SUMIFS(费用明细[支票金额],费用明细[总帐代码],每月支出汇总[[#This Row],[总帐代码]],费用明细[发票日期],\">=\"&D$3,费用明细[发票日期],\"<=\"&D$4)+SUMIFS(其他[支票金额],其他[总帐代码],每月支出汇总[[#This Row],[总帐代码]],其他[发起支票请求的日期],\">=\"&DATEVALUE(_年份&\"年\"&每月支出汇总[[#Headers],[1月]]&\"1日\"),其他[发起支票请求的日期],\"<=\"&D$4)","v":{"v":0,"d":"¥0.00"}},{"$f":"SUMIFS(费用明细[支票金额],费用明细[总帐代码],每月支出汇总[[#This Row],[总帐代码]],费用明细[发票日期],\">=\"&E$3,费用明细[发票日期],\"<=\"&E$4)+SUMIFS(其他[支票金额],其他[总帐代码],每月支出汇总[[#This Row],[总帐代码]],其他[发起支票请求的日期],\">=\"&DATEVALUE(_年份&\"年\"&每月支出汇总[[#Headers],[2月]]&\"1日\"),其他[发起支票请求的日期],\"<=\"&E$4)","v":{"v":0,"d":"¥0.00"}},{"$f":"SUMIFS(费用明细[支票金额],费用明细[总帐代码],每月支出汇总[[#This Row],[总帐代码]],费用明细[发票日期],\">=\"&F$3,费用明细[发票日期],\"<=\"&F$4)+SUMIFS(其他[支票金额],其他[总帐代码],每月支出汇总[[#This Row],[总帐代码]],其他[发起支票请求的日期],\">=\"&DATEVALUE(_年份&\"年\"&每月支出汇总[[#Headers],[3月]]&\"1日\"),其他[发起支票请求的日期],\"<=\"&F$4)","v":{"v":0,"d":"¥0.00"}},{"$f":"SUMIFS(费用明细[支票金额],费用明细[总帐代码],每月支出汇总[[#This Row],[总帐代码]],费用明细[发票日期],\">=\"&G$3,费用明细[发票日期],\"<=\"&G$4)+SUMIFS(其他[支票金额],其他[总帐代码],每月支出汇总[[#This Row],[总帐代码]],其他[发起支票请求的日期],\">=\"&DATEVALUE(_年份&\"年\"&每月支出汇总[[#Headers],[4月]]&\"1日\"),其他[发起支票请求的日期],\"<=\"&G$4)","v":{"v":0,"d":"¥0.00"}},{"$f":"SUMIFS(费用明细[支票金额],费用明细[总帐代码],每月支出汇总[[#This Row],[总帐代码]],费用明细[发票日期],\">=\"&H$3,费用明细[发票日期],\"<=\"&H$4)+SUMIFS(其他[支票金额],其他[总帐代码],每月支出汇总[[#This Row],[总帐代码]],其他[发起支票请求的日期],\">=\"&DATEVALUE(_年份&\"年\"&每月支出汇总[[#Headers],[5月]]&\"1日\"),其他[发起支票请求的日期],\"<=\"&H$4)","v":{"v":0,"d":"¥0.00"}},{"$f":"SUMIFS(费用明细[支票金额],费用明细[总帐代码],每月支出汇总[[#This Row],[总帐代码]],费用明细[发票日期],\">=\"&I$3,费用明细[发票日期],\"<=\"&I$4)+SUMIFS(其他[支票金额],其他[总帐代码],每月支出汇总[[#This Row],[总帐代码]],其他[发起支票请求的日期],\">=\"&DATEVALUE(_年份&\"年\"&每月支出汇总[[#Headers],[6月]]&\"1日\"),其他[发起支票请求的日期],\"<=\"&I$4)","v":{"v":0,"d":"¥0.00"}},{"$f":"SUMIFS(费用明细[支票金额],费用明细[总帐代码],每月支出汇总[[#This Row],[总帐代码]],费用明细[发票日期],\">=\"&J$3,费用明细[发票日期],\"<=\"&J$4)+SUMIFS(其他[支票金额],其他[总帐代码],每月支出汇总[[#This Row],[总帐代码]],其他[发起支票请求的日期],\">=\"&DATEVALUE(_年份&\"年\"&每月支出汇总[[#Headers],[7月]]&\"1日\"),其他[发起支票请求的日期],\"<=\"&J$4)","v":{"v":0,"d":"¥0.00"}},{"$f":"SUMIFS(费用明细[支票金额],费用明细[总帐代码],每月支出汇总[[#This Row],[总帐代码]],费用明细[发票日期],\">=\"&K$3,费用明细[发票日期],\"<=\"&K$4)+SUMIFS(其他[支票金额],其他[总帐代码],每月支出汇总[[#This Row],[总帐代码]],其他[发起支票请求的日期],\">=\"&DATEVALUE(_年份&\"年\"&每月支出汇总[[#Headers],[8月]]&\"1日\"),其他[发起支票请求的日期],\"<=\"&K$4)","v":{"v":0,"d":"¥0.00"}},{"$f":"SUMIFS(费用明细[支票金额],费用明细[总帐代码],每月支出汇总[[#This Row],[总帐代码]],费用明细[发票日期],\">=\"&L$3,费用明细[发票日期],\"<=\"&L$4)+SUMIFS(其他[支票金额],其他[总帐代码],每月支出汇总[[#This Row],[总帐代码]],其他[发起支票请求的日期],\">=\"&DATEVALUE(_年份&\"年\"&每月支出汇总[[#Headers],[9月]]&\"1日\"),其他[发起支票请求的日期],\"<=\"&L$4)","v":{"v":0,"d":"¥0.00"}},{"$f":"SUMIFS(费用明细[支票金额],费用明细[总帐代码],每月支出汇总[[#This Row],[总帐代码]],费用明细[发票日期],\">=\"&M$3,费用明细[发票日期],\"<=\"&M$4)+SUMIFS(其他[支票金额],其他[总帐代码],每月支出汇总[[#This Row],[总帐代码]],其他[发起支票请求的日期],\">=\"&DATEVALUE(_年份&\"年\"&每月支出汇总[[#Headers],[10月]]&\"1日\"),其他[发起支票请求的日期],\"<=\"&M$4)","v":{"v":0,"d":"¥0.00"}},{"$f":"SUMIFS(费用明细[支票金额],费用明细[总帐代码],每月支出汇总[[#This Row],[总帐代码]],费用明细[发票日期],\">=\"&N$3,费用明细[发票日期],\"<=\"&N$4)+SUMIFS(其他[支票金额],其他[总帐代码],每月支出汇总[[#This Row],[总帐代码]],其他[发起支票请求的日期],\">=\"&DATEVALUE(_年份&\"年\"&每月支出汇总[[#Headers],[11月]]&\"1日\"),其他[发起支票请求的日期],\"<=\"&N$4)","v":{"v":0,"d":"¥0.00"}},{"$f":"SUMIFS(费用明细[支票金额],费用明细[总帐代码],每月支出汇总[[#This Row],[总帐代码]],费用明细[发票日期],\">=\"&O$3,费用明细[发票日期],\"<=\"&O$4)+SUMIFS(其他[支票金额],其他[总帐代码],每月支出汇总[[#This Row],[总帐代码]],其他[发起支票请求的日期],\">=\"&DATEVALUE(_年份&\"年\"&每月支出汇总[[#Headers],[12月]]&\"1日\"),其他[发起支票请求的日期],\"<=\"&O$4)","v":{"v":0,"d":"¥0.00"}},{"$f":"SUM(每月支出汇总[[#This Row],[1月]:[12月]])","v":{"v":0,"d":"¥0.00"}}]
[null,9000,"建筑成本",{"$f":"SUMIFS(费用明细[支票金额],费用明细[总帐代码],每月支出汇总[[#This Row],[总帐代码]],费用明细[发票日期],\">=\"&D$3,费用明细[发票日期],\"<=\"&D$4)+SUMIFS(其他[支票金额],其他[总帐代码],每月支出汇总[[#This Row],[总帐代码]],其他[发起支票请求的日期],\">=\"&DATEVALUE(_年份&\"年\"&每月支出汇总[[#Headers],[1月]]&\"1日\"),其他[发起支票请求的日期],\"<=\"&D$4)","v":{"v":0,"d":"¥0.00"}},{"$f":"SUMIFS(费用明细[支票金额],费用明细[总帐代码],每月支出汇总[[#This Row],[总帐代码]],费用明细[发票日期],\">=\"&E$3,费用明细[发票日期],\"<=\"&E$4)+SUMIFS(其他[支票金额],其他[总帐代码],每月支出汇总[[#This Row],[总帐代码]],其他[发起支票请求的日期],\">=\"&DATEVALUE(_年份&\"年\"&每月支出汇总[[#Headers],[2月]]&\"1日\"),其他[发起支票请求的日期],\"<=\"&E$4)","v":{"v":0,"d":"¥0.00"}},{"$f":"SUMIFS(费用明细[支票金额],费用明细[总帐代码],每月支出汇总[[#This Row],[总帐代码]],费用明细[发票日期],\">=\"&F$3,费用明细[发票日期],\"<=\"&F$4)+SUMIFS(其他[支票金额],其他[总帐代码],每月支出汇总[[#This Row],[总帐代码]],其他[发起支票请求的日期],\">=\"&DATEVALUE(_年份&\"年\"&每月支出汇总[[#Headers],[3月]]&\"1日\"),其他[发起支票请求的日期],\"<=\"&F$4)","v":{"v":0,"d":"¥0.00"}},{"$f":"SUMIFS(费用明细[支票金额],费用明细[总帐代码],每月支出汇总[[#This Row],[总帐代码]],费用明细[发票日期],\">=\"&G$3,费用明细[发票日期],\"<=\"&G$4)+SUMIFS(其他[支票金额],其他[总帐代码],每月支出汇总[[#This Row],[总帐代码]],其他[发起支票请求的日期],\">=\"&DATEVALUE(_年份&\"年\"&每月支出汇总[[#Headers],[4月]]&\"1日\"),其他[发起支票请求的日期],\"<=\"&G$4)","v":{"v":0,"d":"¥0.00"}},{"$f":"SUMIFS(费用明细[支票金额],费用明细[总帐代码],每月支出汇总[[#This Row],[总帐代码]],费用明细[发票日期],\">=\"&H$3,费用明细[发票日期],\"<=\"&H$4)+SUMIFS(其他[支票金额],其他[总帐代码],每月支出汇总[[#This Row],[总帐代码]],其他[发起支票请求的日期],\">=\"&DATEVALUE(_年份&\"年\"&每月支出汇总[[#Headers],[5月]]&\"1日\"),其他[发起支票请求的日期],\"<=\"&H$4)","v":{"v":0,"d":"¥0.00"}},{"$f":"SUMIFS(费用明细[支票金额],费用明细[总帐代码],每月支出汇总[[#This Row],[总帐代码]],费用明细[发票日期],\">=\"&I$3,费用明细[发票日期],\"<=\"&I$4)+SUMIFS(其他[支票金额],其他[总帐代码],每月支出汇总[[#This Row],[总帐代码]],其他[发起支票请求的日期],\">=\"&DATEVALUE(_年份&\"年\"&每月支出汇总[[#Headers],[6月]]&\"1日\"),其他[发起支票请求的日期],\"<=\"&I$4)","v":{"v":0,"d":"¥0.00"}},{"$f":"SUMIFS(费用明细[支票金额],费用明细[总帐代码],每月支出汇总[[#This Row],[总帐代码]],费用明细[发票日期],\">=\"&J$3,费用明细[发票日期],\"<=\"&J$4)+SUMIFS(其他[支票金额],其他[总帐代码],每月支出汇总[[#This Row],[总帐代码]],其他[发起支票请求的日期],\">=\"&DATEVALUE(_年份&\"年\"&每月支出汇总[[#Headers],[7月]]&\"1日\"),其他[发起支票请求的日期],\"<=\"&J$4)","v":{"v":0,"d":"¥0.00"}},{"$f":"SUMIFS(费用明细[支票金额],费用明细[总帐代码],每月支出汇总[[#This Row],[总帐代码]],费用明细[发票日期],\">=\"&K$3,费用明细[发票日期],\"<=\"&K$4)+SUMIFS(其他[支票金额],其他[总帐代码],每月支出汇总[[#This Row],[总帐代码]],其他[发起支票请求的日期],\">=\"&DATEVALUE(_年份&\"年\"&每月支出汇总[[#Headers],[8月]]&\"1日\"),其他[发起支票请求的日期],\"<=\"&K$4)","v":{"v":0,"d":"¥0.00"}},{"$f":"SUMIFS(费用明细[支票金额],费用明细[总帐代码],每月支出汇总[[#This Row],[总帐代码]],费用明细[发票日期],\">=\"&L$3,费用明细[发票日期],\"<=\"&L$4)+SUMIFS(其他[支票金额],其他[总帐代码],每月支出汇总[[#This Row],[总帐代码]],其他[发起支票请求的日期],\">=\"&DATEVALUE(_年份&\"年\"&每月支出汇总[[#Headers],[9月]]&\"1日\"),其他[发起支票请求的日期],\"<=\"&L$4)","v":{"v":0,"d":"¥0.00"}},{"$f":"SUMIFS(费用明细[支票金额],费用明细[总帐代码],每月支出汇总[[#This Row],[总帐代码]],费用明细[发票日期],\">=\"&M$3,费用明细[发票日期],\"<=\"&M$4)+SUMIFS(其他[支票金额],其他[总帐代码],每月支出汇总[[#This Row],[总帐代码]],其他[发起支票请求的日期],\">=\"&DATEVALUE(_年份&\"年\"&每月支出汇总[[#Headers],[10月]]&\"1日\"),其他[发起支票请求的日期],\"<=\"&M$4)","v":{"v":0,"d":"¥0.00"}},{"$f":"SUMIFS(费用明细[支票金额],费用明细[总帐代码],每月支出汇总[[#This Row],[总帐代码]],费用明细[发票日期],\">=\"&N$3,费用明细[发票日期],\"<=\"&N$4)+SUMIFS(其他[支票金额],其他[总帐代码],每月支出汇总[[#This Row],[总帐代码]],其他[发起支票请求的日期],\">=\"&DATEVALUE(_年份&\"年\"&每月支出汇总[[#Headers],[11月]]&\"1日\"),其他[发起支票请求的日期],\"<=\"&N$4)","v":{"v":0,"d":"¥0.00"}},{"$f":"SUMIFS(费用明细[支票金额],费用明细[总帐代码],每月支出汇总[[#This Row],[总帐代码]],费用明细[发票日期],\">=\"&O$3,费用明细[发票日期],\"<=\"&O$4)+SUMIFS(其他[支票金额],其他[总帐代码],每月支出汇总[[#This Row],[总帐代码]],其他[发起支票请求的日期],\">=\"&DATEVALUE(_年份&\"年\"&每月支出汇总[[#Headers],[12月]]&\"1日\"),其他[发起支票请求的日期],\"<=\"&O$4)","v":{"v":0,"d":"¥0.00"}},{"$f":"SUM(每月支出汇总[[#This Row],[1月]:[12月]])","v":{"v":0,"d":"¥0.00"}}]
[null,10000,"市场营销",{"$f":"SUMIFS(费用明细[支票金额],费用明细[总帐代码],每月支出汇总[[#This Row],[总帐代码]],费用明细[发票日期],\">=\"&D$3,费用明细[发票日期],\"<=\"&D$4)+SUMIFS(其他[支票金额],其他[总帐代码],每月支出汇总[[#This Row],[总帐代码]],其他[发起支票请求的日期],\">=\"&DATEVALUE(_年份&\"年\"&每月支出汇总[[#Headers],[1月]]&\"1日\"),其他[发起支票请求的日期],\"<=\"&D$4)","v":{"v":0,"d":"¥0.00"}},{"$f":"SUMIFS(费用明细[支票金额],费用明细[总帐代码],每月支出汇总[[#This Row],[总帐代码]],费用明细[发票日期],\">=\"&E$3,费用明细[发票日期],\"<=\"&E$4)+SUMIFS(其他[支票金额],其他[总帐代码],每月支出汇总[[#This Row],[总帐代码]],其他[发起支票请求的日期],\">=\"&DATEVALUE(_年份&\"年\"&每月支出汇总[[#Headers],[2月]]&\"1日\"),其他[发起支票请求的日期],\"<=\"&E$4)","v":{"v":0,"d":"¥0.00"}},{"$f":"SUMIFS(费用明细[支票金额],费用明细[总帐代码],每月支出汇总[[#This Row],[总帐代码]],费用明细[发票日期],\">=\"&F$3,费用明细[发票日期],\"<=\"&F$4)+SUMIFS(其他[支票金额],其他[总帐代码],每月支出汇总[[#This Row],[总帐代码]],其他[发起支票请求的日期],\">=\"&DATEVALUE(_年份&\"年\"&每月支出汇总[[#Headers],[3月]]&\"1日\"),其他[发起支票请求的日期],\"<=\"&F$4)","v":{"v":0,"d":"¥0.00"}},{"$f":"SUMIFS(费用明细[支票金额],费用明细[总帐代码],每月支出汇总[[#This Row],[总帐代码]],费用明细[发票日期],\">=\"&G$3,费用明细[发票日期],\"<=\"&G$4)+SUMIFS(其他[支票金额],其他[总帐代码],每月支出汇总[[#This Row],[总帐代码]],其他[发起支票请求的日期],\">=\"&DATEVALUE(_年份&\"年\"&每月支出汇总[[#Headers],[4月]]&\"1日\"),其他[发起支票请求的日期],\"<=\"&G$4)","v":{"v":0,"d":"¥0.00"}},{"$f":"SUMIFS(费用明细[支票金额],费用明细[总帐代码],每月支出汇总[[#This Row],[总帐代码]],费用明细[发票日期],\">=\"&H$3,费用明细[发票日期],\"<=\"&H$4)+SUMIFS(其他[支票金额],其他[总帐代码],每月支出汇总[[#This Row],[总帐代码]],其他[发起支票请求的日期],\">=\"&DATEVALUE(_年份&\"年\"&每月支出汇总[[#Headers],[5月]]&\"1日\"),其他[发起支票请求的日期],\"<=\"&H$4)","v":{"v":0,"d":"¥0.00"}},{"$f":"SUMIFS(费用明细[支票金额],费用明细[总帐代码],每月支出汇总[[#This Row],[总帐代码]],费用明细[发票日期],\">=\"&I$3,费用明细[发票日期],\"<=\"&I$4)+SUMIFS(其他[支票金额],其他[总帐代码],每月支出汇总[[#This Row],[总帐代码]],其他[发起支票请求的日期],\">=\"&DATEVALUE(_年份&\"年\"&每月支出汇总[[#Headers],[6月]]&\"1日\"),其他[发起支票请求的日期],\"<=\"&I$4)","v":{"v":0,"d":"¥0.00"}},{"$f":"SUMIFS(费用明细[支票金额],费用明细[总帐代码],每月支出汇总[[#This Row],[总帐代码]],费用明细[发票日期],\">=\"&J$3,费用明细[发票日期],\"<=\"&J$4)+SUMIFS(其他[支票金额],其他[总帐代码],每月支出汇总[[#This Row],[总帐代码]],其他[发起支票请求的日期],\">=\"&DATEVALUE(_年份&\"年\"&每月支出汇总[[#Headers],[7月]]&\"1日\"),其他[发起支票请求的日期],\"<=\"&J$4)","v":{"v":0,"d":"¥0.00"}},{"$f":"SUMIFS(费用明细[支票金额],费用明细[总帐代码],每月支出汇总[[#This Row],[总帐代码]],费用明细[发票日期],\">=\"&K$3,费用明细[发票日期],\"<=\"&K$4)+SUMIFS(其他[支票金额],其他[总帐代码],每月支出汇总[[#This Row],[总帐代码]],其他[发起支票请求的日期],\">=\"&DATEVALUE(_年份&\"年\"&每月支出汇总[[#Headers],[8月]]&\"1日\"),其他[发起支票请求的日期],\"<=\"&K$4)","v":{"v":0,"d":"¥0.00"}},{"$f":"SUMIFS(费用明细[支票金额],费用明细[总帐代码],每月支出汇总[[#This Row],[总帐代码]],费用明细[发票日期],\">=\"&L$3,费用明细[发票日期],\"<=\"&L$4)+SUMIFS(其他[支票金额],其他[总帐代码],每月支出汇总[[#This Row],[总帐代码]],其他[发起支票请求的日期],\">=\"&DATEVALUE(_年份&\"年\"&每月支出汇总[[#Headers],[9月]]&\"1日\"),其他[发起支票请求的日期],\"<=\"&L$4)","v":{"v":0,"d":"¥0.00"}},{"$f":"SUMIFS(费用明细[支票金额],费用明细[总帐代码],每月支出汇总[[#This Row],[总帐代码]],费用明细[发票日期],\">=\"&M$3,费用明细[发票日期],\"<=\"&M$4)+SUMIFS(其他[支票金额],其他[总帐代码],每月支出汇总[[#This Row],[总帐代码]],其他[发起支票请求的日期],\">=\"&DATEVALUE(_年份&\"年\"&每月支出汇总[[#Headers],[10月]]&\"1日\"),其他[发起支票请求的日期],\"<=\"&M$4)","v":{"v":0,"d":"¥0.00"}},{"$f":"SUMIFS(费用明细[支票金额],费用明细[总帐代码],每月支出汇总[[#This Row],[总帐代码]],费用明细[发票日期],\">=\"&N$3,费用明细[发票日期],\"<=\"&N$4)+SUMIFS(其他[支票金额],其他[总帐代码],每月支出汇总[[#This Row],[总帐代码]],其他[发起支票请求的日期],\">=\"&DATEVALUE(_年份&\"年\"&每月支出汇总[[#Headers],[11月]]&\"1日\"),其他[发起支票请求的日期],\"<=\"&N$4)","v":{"v":0,"d":"¥0.00"}},{"$f":"SUMIFS(费用明细[支票金额],费用明细[总帐代码],每月支出汇总[[#This Row],[总帐代码]],费用明细[发票日期],\">=\"&O$3,费用明细[发票日期],\"<=\"&O$4)+SUMIFS(其他[支票金额],其他[总帐代码],每月支出汇总[[#This Row],[总帐代码]],其他[发起支票请求的日期],\">=\"&DATEVALUE(_年份&\"年\"&每月支出汇总[[#Headers],[12月]]&\"1日\"),其他[发起支票请求的日期],\"<=\"&O$4)","v":{"v":0,"d":"¥0.00"}},{"$f":"SUM(每月支出汇总[[#This Row],[1月]:[12月]])","v":{"v":0,"d":"¥0.00"}}]
[null,11000,"慈善",{"$f":"SUMIFS(费用明细[支票金额],费用明细[总帐代码],每月支出汇总[[#This Row],[总帐代码]],费用明细[发票日期],\">=\"&D$3,费用明细[发票日期],\"<=\"&D$4)+SUMIFS(其他[支票金额],其他[总帐代码],每月支出汇总[[#This Row],[总帐代码]],其他[发起支票请求的日期],\">=\"&DATEVALUE(_年份&\"年\"&每月支出汇总[[#Headers],[1月]]&\"1日\"),其他[发起支票请求的日期],\"<=\"&D$4)","v":{"v":0,"d":"¥0.00"}},{"$f":"SUMIFS(费用明细[支票金额],费用明细[总帐代码],每月支出汇总[[#This Row],[总帐代码]],费用明细[发票日期],\">=\"&E$3,费用明细[发票日期],\"<=\"&E$4)+SUMIFS(其他[支票金额],其他[总帐代码],每月支出汇总[[#This Row],[总帐代码]],其他[发起支票请求的日期],\">=\"&DATEVALUE(_年份&\"年\"&每月支出汇总[[#Headers],[2月]]&\"1日\"),其他[发起支票请求的日期],\"<=\"&E$4)","v":{"v":0,"d":"¥0.00"}},{"$f":"SUMIFS(费用明细[支票金额],费用明细[总帐代码],每月支出汇总[[#This Row],[总帐代码]],费用明细[发票日期],\">=\"&F$3,费用明细[发票日期],\"<=\"&F$4)+SUMIFS(其他[支票金额],其他[总帐代码],每月支出汇总[[#This Row],[总帐代码]],其他[发起支票请求的日期],\">=\"&DATEVALUE(_年份&\"年\"&每月支出汇总[[#Headers],[3月]]&\"1日\"),其他[发起支票请求的日期],\"<=\"&F$4)","v":{"v":0,"d":"¥0.00"}},{"$f":"SUMIFS(费用明细[支票金额],费用明细[总帐代码],每月支出汇总[[#This Row],[总帐代码]],费用明细[发票日期],\">=\"&G$3,费用明细[发票日期],\"<=\"&G$4)+SUMIFS(其他[支票金额],其他[总帐代码],每月支出汇总[[#This Row],[总帐代码]],其他[发起支票请求的日期],\">=\"&DATEVALUE(_年份&\"年\"&每月支出汇总[[#Headers],[4月]]&\"1日\"),其他[发起支票请求的日期],\"<=\"&G$4)","v":{"v":0,"d":"¥0.00"}},{"$f":"SUMIFS(费用明细[支票金额],费用明细[总帐代码],每月支出汇总[[#This Row],[总帐代码]],费用明细[发票日期],\">=\"&H$3,费用明细[发票日期],\"<=\"&H$4)+SUMIFS(其他[支票金额],其他[总帐代码],每月支出汇总[[#This Row],[总帐代码]],其他[发起支票请求的日期],\">=\"&DATEVALUE(_年份&\"年\"&每月支出汇总[[#Headers],[5月]]&\"1日\"),其他[发起支票请求的日期],\"<=\"&H$4)","v":{"v":0,"d":"¥0.00"}},{"$f":"SUMIFS(费用明细[支票金额],费用明细[总帐代码],每月支出汇总[[#This Row],[总帐代码]],费用明细[发票日期],\">=\"&I$3,费用明细[发票日期],\"<=\"&I$4)+SUMIFS(其他[支票金额],其他[总帐代码],每月支出汇总[[#This Row],[总帐代码]],其他[发起支票请求的日期],\">=\"&DATEVALUE(_年份&\"年\"&每月支出汇总[[#Headers],[6月]]&\"1日\"),其他[发起支票请求的日期],\"<=\"&I$4)","v":{"v":0,"d":"¥0.00"}},{"$f":"SUMIFS(费用明细[支票金额],费用明细[总帐代码],每月支出汇总[[#This Row],[总帐代码]],费用明细[发票日期],\">=\"&J$3,费用明细[发票日期],\"<=\"&J$4)+SUMIFS(其他[支票金额],其他[总帐代码],每月支出汇总[[#This Row],[总帐代码]],其他[发起支票请求的日期],\">=\"&DATEVALUE(_年份&\"年\"&每月支出汇总[[#Headers],[7月]]&\"1日\"),其他[发起支票请求的日期],\"<=\"&J$4)","v":{"v":0,"d":"¥0.00"}},{"$f":"SUMIFS(费用明细[支票金额],费用明细[总帐代码],每月支出汇总[[#This Row],[总帐代码]],费用明细[发票日期],\">=\"&K$3,费用明细[发票日期],\"<=\"&K$4)+SUMIFS(其他[支票金额],其他[总帐代码],每月支出汇总[[#This Row],[总帐代码]],其他[发起支票请求的日期],\">=\"&DATEVALUE(_年份&\"年\"&每月支出汇总[[#Headers],[8月]]&\"1日\"),其他[发起支票请求的日期],\"<=\"&K$4)","v":{"v":0,"d":"¥0.00"}},{"$f":"SUMIFS(费用明细[支票金额],费用明细[总帐代码],每月支出汇总[[#This Row],[总帐代码]],费用明细[发票日期],\">=\"&L$3,费用明细[发票日期],\"<=\"&L$4)+SUMIFS(其他[支票金额],其他[总帐代码],每月支出汇总[[#This Row],[总帐代码]],其他[发起支票请求的日期],\">=\"&DATEVALUE(_年份&\"年\"&每月支出汇总[[#Headers],[9月]]&\"1日\"),其他[发起支票请求的日期],\"<=\"&L$4)","v":{"v":0,"d":"¥0.00"}},{"$f":"SUMIFS(费用明细[支票金额],费用明细[总帐代码],每月支出汇总[[#This Row],[总帐代码]],费用明细[发票日期],\">=\"&M$3,费用明细[发票日期],\"<=\"&M$4)+SUMIFS(其他[支票金额],其他[总帐代码],每月支出汇总[[#This Row],[总帐代码]],其他[发起支票请求的日期],\">=\"&DATEVALUE(_年份&\"年\"&每月支出汇总[[#Headers],[10月]]&\"1日\"),其他[发起支票请求的日期],\"<=\"&M$4)","v":{"v":0,"d":"¥0.00"}},{"$f":"SUMIFS(费用明细[支票金额],费用明细[总帐代码],每月支出汇总[[#This Row],[总帐代码]],费用明细[发票日期],\">=\"&N$3,费用明细[发票日期],\"<=\"&N$4)+SUMIFS(其他[支票金额],其他[总帐代码],每月支出汇总[[#This Row],[总帐代码]],其他[发起支票请求的日期],\">=\"&DATEVALUE(_年份&\"年\"&每月支出汇总[[#Headers],[11月]]&\"1日\"),其他[发起支票请求的日期],\"<=\"&N$4)","v":{"v":0,"d":"¥0.00"}},{"$f":"SUMIFS(费用明细[支票金额],费用明细[总帐代码],每月支出汇总[[#This Row],[总帐代码]],费用明细[发票日期],\">=\"&O$3,费用明细[发票日期],\"<=\"&O$4)+SUMIFS(其他[支票金额],其他[总帐代码],每月支出汇总[[#This Row],[总帐代码]],其他[发起支票请求的日期],\">=\"&DATEVALUE(_年份&\"年\"&每月支出汇总[[#Headers],[12月]]&\"1日\"),其他[发起支票请求的日期],\"<=\"&O$4)","v":{"v":0,"d":"¥0.00"}},{"$f":"SUM(每月支出汇总[[#This Row],[1月]:[12月]])","v":{"v":0,"d":"¥0.00"}}]
[null,12000,"赞助",{"$f":"SUMIFS(费用明细[支票金额],费用明细[总帐代码],每月支出汇总[[#This Row],[总帐代码]],费用明细[发票日期],\">=\"&D$3,费用明细[发票日期],\"<=\"&D$4)+SUMIFS(其他[支票金额],其他[总帐代码],每月支出汇总[[#This Row],[总帐代码]],其他[发起支票请求的日期],\">=\"&DATEVALUE(_年份&\"年\"&每月支出汇总[[#Headers],[1月]]&\"1日\"),其他[发起支票请求的日期],\"<=\"&D$4)","v":{"v":0,"d":"¥0.00"}},{"$f":"SUMIFS(费用明细[支票金额],费用明细[总帐代码],每月支出汇总[[#This Row],[总帐代码]],费用明细[发票日期],\">=\"&E$3,费用明细[发票日期],\"<=\"&E$4)+SUMIFS(其他[支票金额],其他[总帐代码],每月支出汇总[[#This Row],[总帐代码]],其他[发起支票请求的日期],\">=\"&DATEVALUE(_年份&\"年\"&每月支出汇总[[#Headers],[2月]]&\"1日\"),其他[发起支票请求的日期],\"<=\"&E$4)","v":{"v":0,"d":"¥0.00"}},{"$f":"SUMIFS(费用明细[支票金额],费用明细[总帐代码],每月支出汇总[[#This Row],[总帐代码]],费用明细[发票日期],\">=\"&F$3,费用明细[发票日期],\"<=\"&F$4)+SUMIFS(其他[支票金额],其他[总帐代码],每月支出汇总[[#This Row],[总帐代码]],其他[发起支票请求的日期],\">=\"&DATEVALUE(_年份&\"年\"&每月支出汇总[[#Headers],[3月]]&\"1日\"),其他[发起支票请求的日期],\"<=\"&F$4)","v":{"v":0,"d":"¥0.00"}},{"$f":"SUMIFS(费用明细[支票金额],费用明细[总帐代码],每月支出汇总[[#This Row],[总帐代码]],费用明细[发票日期],\">=\"&G$3,费用明细[发票日期],\"<=\"&G$4)+SUMIFS(其他[支票金额],其他[总帐代码],每月支出汇总[[#This Row],[总帐代码]],其他[发起支票请求的日期],\">=\"&DATEVALUE(_年份&\"年\"&每月支出汇总[[#Headers],[4月]]&\"1日\"),其他[发起支票请求的日期],\"<=\"&G$4)","v":{"v":0,"d":"¥0.00"}},{"$f":"SUMIFS(费用明细[支票金额],费用明细[总帐代码],每月支出汇总[[#This Row],[总帐代码]],费用明细[发票日期],\">=\"&H$3,费用明细[发票日期],\"<=\"&H$4)+SUMIFS(其他[支票金额],其他[总帐代码],每月支出汇总[[#This Row],[总帐代码]],其他[发起支票请求的日期],\">=\"&DATEVALUE(_年份&\"年\"&每月支出汇总[[#Headers],[5月]]&\"1日\"),其他[发起支票请求的日期],\"<=\"&H$4)","v":{"v":0,"d":"¥0.00"}},{"$f":"SUMIFS(费用明细[支票金额],费用明细[总帐代码],每月支出汇总[[#This Row],[总帐代码]],费用明细[发票日期],\">=\"&I$3,费用明细[发票日期],\"<=\"&I$4)+SUMIFS(其他[支票金额],其他[总帐代码],每月支出汇总[[#This Row],[总帐代码]],其他[发起支票请求的日期],\">=\"&DATEVALUE(_年份&\"年\"&每月支出汇总[[#Headers],[6月]]&\"1日\"),其他[发起支票请求的日期],\"<=\"&I$4)","v":{"v":0,"d":"¥0.00"}},{"$f":"SUMIFS(费用明细[支票金额],费用明细[总帐代码],每月支出汇总[[#This Row],[总帐代码]],费用明细[发票日期],\">=\"&J$3,费用明细[发票日期],\"<=\"&J$4)+SUMIFS(其他[支票金额],其他[总帐代码],每月支出汇总[[#This Row],[总帐代码]],其他[发起支票请求的日期],\">=\"&DATEVALUE(_年份&\"年\"&每月支出汇总[[#Headers],[7月]]&\"1日\"),其他[发起支票请求的日期],\"<=\"&J$4)","v":{"v":0,"d":"¥0.00"}},{"$f":"SUMIFS(费用明细[支票金额],费用明细[总帐代码],每月支出汇总[[#This Row],[总帐代码]],费用明细[发票日期],\">=\"&K$3,费用明细[发票日期],\"<=\"&K$4)+SUMIFS(其他[支票金额],其他[总帐代码],每月支出汇总[[#This Row],[总帐代码]],其他[发起支票请求的日期],\">=\"&DATEVALUE(_年份&\"年\"&每月支出汇总[[#Headers],[8月]]&\"1日\"),其他[发起支票请求的日期],\"<=\"&K$4)","v":{"v":0,"d":"¥0.00"}},{"$f":"SUMIFS(费用明细[支票金额],费用明细[总帐代码],每月支出汇总[[#This Row],[总帐代码]],费用明细[发票日期],\">=\"&L$3,费用明细[发票日期],\"<=\"&L$4)+SUMIFS(其他[支票金额],其他[总帐代码],每月支出汇总[[#This Row],[总帐代码]],其他[发起支票请求的日期],\">=\"&DATEVALUE(_年份&\"年\"&每月支出汇总[[#Headers],[9月]]&\"1日\"),其他[发起支票请求的日期],\"<=\"&L$4)","v":{"v":0,"d":"¥0.00"}},{"$f":"SUMIFS(费用明细[支票金额],费用明细[总帐代码],每月支出汇总[[#This Row],[总帐代码]],费用明细[发票日期],\">=\"&M$3,费用明细[发票日期],\"<=\"&M$4)+SUMIFS(其他[支票金额],其他[总帐代码],每月支出汇总[[#This Row],[总帐代码]],其他[发起支票请求的日期],\">=\"&DATEVALUE(_年份&\"年\"&每月支出汇总[[#Headers],[10月]]&\"1日\"),其他[发起支票请求的日期],\"<=\"&M$4)","v":{"v":0,"d":"¥0.00"}},{"$f":"SUMIFS(费用明细[支票金额],费用明细[总帐代码],每月支出汇总[[#This Row],[总帐代码]],费用明细[发票日期],\">=\"&N$3,费用明细[发票日期],\"<=\"&N$4)+SUMIFS(其他[支票金额],其他[总帐代码],每月支出汇总[[#This Row],[总帐代码]],其他[发起支票请求的日期],\">=\"&DATEVALUE(_年份&\"年\"&每月支出汇总[[#Headers],[11月]]&\"1日\"),其他[发起支票请求的日期],\"<=\"&N$4)","v":{"v":0,"d":"¥0.00"}},{"$f":"SUMIFS(费用明细[支票金额],费用明细[总帐代码],每月支出汇总[[#This Row],[总帐代码]],费用明细[发票日期],\">=\"&O$3,费用明细[发票日期],\"<=\"&O$4)+SUMIFS(其他[支票金额],其他[总帐代码],每月支出汇总[[#This Row],[总帐代码]],其他[发起支票请求的日期],\">=\"&DATEVALUE(_年份&\"年\"&每月支出汇总[[#Headers],[12月]]&\"1日\"),其他[发起支票请求的日期],\"<=\"&O$4)","v":{"v":0,"d":"¥0.00"}},{"$f":"SUM(每月支出汇总[[#This Row],[1月]:[12月]])","v":{"v":0,"d":"¥0.00"}}]
[null,"汇总",null,{"$f":"SUBTOTAL(109,每月支出汇总[1月])","v":{"v":0,"d":"¥0.00"}},{"$f":"SUBTOTAL(109,每月支出汇总[2月])","v":{"v":0,"d":"¥0.00"}},{"$f":"SUBTOTAL(109,每月支出汇总[3月])","v":{"v":0,"d":"¥0.00"}},{"$f":"SUBTOTAL(109,每月支出汇总[4月])","v":{"v":0,"d":"¥0.00"}},{"$f":"SUBTOTAL(109,每月支出汇总[5月])","v":{"v":0,"d":"¥0.00"}},{"$f":"SUBTOTAL(109,每月支出汇总[6月])","v":{"v":0,"d":"¥0.00"}},{"$f":"SUBTOTAL(109,每月支出汇总[7月])","v":{"v":0,"d":"¥0.00"}},{"$f":"SUBTOTAL(109,每月支出汇总[8月])","v":{"v":0,"d":"¥0.00"}},{"$f":"SUBTOTAL(109,每月支出汇总[9月])","v":{"v":0,"d":"¥0.00"}},{"$f":"SUBTOTAL(109,每月支出汇总[10月])","v":{"v":0,"d":"¥0.00"}},{"$f":"SUBTOTAL(109,每月支出汇总[11月])","v":{"v":0,"d":"¥0.00"}},{"$f":"SUBTOTAL(109,每月支出汇总[12月])","v":{"v":0,"d":"¥0.00"}},{"$f":"SUBTOTAL(109,每月支出汇总[总计])","v":{"v":0,"d":"¥0.00"}}]

{"sheet":"费用明细","index":2,"n_rows":6,"n_cols":10,"rows_kept":6,"merged":[[1,1,1,9],[2,1,2,5],[2,6,2,9]]}
[]
[null,"费用明细"]
[]
[null,"总帐代码","发票日期","发票编号","请求人","支票金额","收款人","支票用途","分发方法","档案日期"]
[null,1000,"日期",100,"Andy Teal",{"v":750.75,"d":"¥750.75"},"Consolidated Messenger ","邮寄费","邮件","日期"]
[null,7000,"日期",101,"Robert Walters",{"v":2500,"d":"¥2,500.00"},"A.Datum Corporation ","2 台台式计算机","贷记","日期"]

{"sheet":"慈善和赞助","index":3,"n_rows":6,"n_cols":12,"rows_kept":6,"merged":[[1,1,1,11],[2,1,2,5],[2,6,2,11]]}
[]
[null,"慈善和赞助"]
[]
[null,"总帐代码","发起支票请求的日期","请求人","支票金额","上一年捐款","收款人","用途","签署人","类别","分发方法","档案日期"]
[null,12000,"日期","Susan W. Eaton",{"v":1000,"d":"¥1,000.00"},{"v":12,"d":"¥12.00"},"School of Fine Art ","奖学金","Kim Ralls","艺术","支票","日期"]
[null,11000,"日期","Susan W. Eaton",{"v":2500,"d":"¥2,500.00"},{"v":0,"d":"¥0.00"},"Wingtip Toys ","社区","Kathie Flood","社区","支票","日期"]